Workbook

Sheet Informatie
A1: LEES ONDERSTAANDE INFO EERST!!
A3: Zowel de afgevaardigden als de reserves dienen zich aan te melden met een digitaal inschrijf formulier bij het secretariaat van de kring .
A5: Heb je vragen over de inschrijving, mail dan naar:

Sheet B
A1: Selectie uitslagen
C2: 1 | D2: =FLOOR((C2+3)/4,1) -> 1 | H2: 192 | I2: 190 | J2: =H2+I2 -> 382 | N2: 1 | P2: 193 | Q2: 193 | R2: =P2+Q2 -> 386 | V2: 2 | X2: 198 | Y2: 198 | Z2: =X2+Y2 -> 396 | AD2: 3 | AF2: 177 | AG2: 177 | AH2: =AF2+AG2 -> 354 | AL2: 4 | AN2: 178 | AO2: 178 | AP2: =AN2+AO2 -> 356 | AT2: 5 | AV2: 179 | AW2: 179 | AX2: =AV2+AW2 -> 358 | BB2: 6 | BC2: =N2+V2+AD2+AL2+AT2+BB2 -> 21 | BD2: =J2+R2+Z2+AH2+AP2+AX2 -> 2232 | BE2: =IF($O$4>0,(LARGE(($N2,$V2,$AD2,$AL2,$AT2,$BB2),1)),"0") -> 6 | BF2: =IF($O$4>0,(LARGE(($N2,$V2,$AD2,$AL2,$AT2,$BB2),2)),"0") -> 5 | BG2: 354 | BH2: 354 | BI2: =BC2-BE2-BF2 -> 10 | BJ2: =BD2-BG2-BH2 -> 1524
A3: Kring: | C3: =Instellingen!B3 -> Kring NVF | F3: Aantal afvaardiging Regio: | O3: 7 | BC3: Aantal wedstrijden: | BL3: =Instellingen!B6 -> 3
A4: Klasse: | C4: B | F4: Aantal afval resultaten: | O4: =Instellingen!B7 -> 1
A5: Cat.: | F5: Plaatsingspunten niet gestart: | O5: =Instellingen!B5 -> 99 | BC5: Aantal reserves: | BL5: 2
F6: Lokatie: | G6: =Instellingen!B36 -> Hattem | O6: =Instellingen!B37 -> Ermelo | W6: =Instellingen!B38 -> Nunspeet | AE6: =Instellingen!B39 -> 0 | AM6: =Instellingen!B40 -> 0 | AU6: =Instellingen!B41 -> 0 | BC6: Dressuur | BI6: Pnt. 60% regel | BL6: 180
F7: Datum: | G7: =Instellingen!C36 -> 06 jun 2022 | O7: =Instellingen!C37 -> 18 jun 2022 | W7: =Instellingen!C38 -> 02 jul 2022 | AE7: =Instellingen!C39 ->  | AM7: =Instellingen!C40 ->  | AU7: =Instellingen!C41 ->  | BC7: Tot. | BD7: Tot. | BE7: afval | BF7: afval | BG7: afval | BH7: afval | BI7: Beste | BJ7: Beste
A8: Pl. | B8: Comb.nr. | C8: Ruiter/amazone | D8: Paard/pony | E8: kl. | F8: vereniging | G8: Ring | H8: pnt.C | I8: pnt.H | J8: pnt.tot | K8: ex 1 | L8: ex 2 | M8: pl. | N8: pl.p. | O8: Ring | P8: pnt.C | Q8: pnt.H | R8: pnt.tot. | S8: ex 1 | T8: ex 2 | U8: pl. | V8: pl.p. | W8: Ring | X8: pnt.C | Y8: pnt. H | Z8: pnt.tot. | AA8: ex 1 | AB8: ex 2 | AC8: pl. | AD8: pl.p. | AE8: Ring | AF8: pnt.C | AG8: pnt.H | AH8: pnt.tot. | AI8: ex 1 | AJ8: ex 2 | AK8: pl. | AL8: pl.p. | AM8: Ring | AN8: pnt.C | AO8: pnt.H | AP8: pnt.tot. | AQ8: ex 1 | AR8: ex 2 | AS8: pl. | AT8: pl.p. | AU8: Ring | AV8: pnt.C | AW8: pnt.H | AX8: pnt.tot. | AY8: ex 1 | AZ8: ex 2 | BA8: pl. | BB8: pl.p. | BC8: pl.pnt | BD8: punten | BE8: pl.pnt | BF8: pl.pnt | BG8: punten | BH8: punten | BI8: pl.pnt | BJ8: punten | BK8: Afv. | BL8: Res. | BM8: Afv. Regio | BN8: opmerking
A9: 1 | B9: 941224MR | C9: Mendy De Ruiter | D9: Montserrat-Beau | E9: B | F9: Nunspeetse Ruiterclub, RV. | G9: 5 | H9: 207 | I9: 0 | J9: =H9+I9 -> 207 | K9: 6.5 | L9: 7 | M9: 1 | N9: 1 | O9: 3 | P9: 207.5 | Q9: 0 | R9: =P9+Q9 -> 207.5 | S9: 7 | T9: 6.5 | U9: 1 | V9: 1 | Z9: =X9+Y9 -> 0 | AD9: 99 | BC9: =N9+V9+AD9+AL9+AT9+BB9 -> 101 | BD9: =J9+R9+Z9+AH9+AP9+AX9 -> 414.5 | BE9: =IF($O$4>0,(LARGE(($N9,$V9,$AD9,$AL9,$AT9,$BB9),1)),"0") -> 99 | BG9: 0 | BH9: 0 | BI9: =BC9-BE9-BF9 -> 2 | BJ9: =BD9-BG9-BH9 -> 414.5 | BK9: 1 | BN9: Kringkampioen
A10: 2 | B10: 952978LW | C10: Armanda Van der Wal | D10: Lyandra-Cara Vdw | E10: B | F10: Schaapskooiruiters, RV. | G10: 5 | H10: 201.5 | I10: 0 | J10: 201.5 | K10: 6.5 | L10: 6.5 | M10: 4 | N10: 4 | O10: 3 | P10: 200 | Q10: 0 | R10: 200 | S10: 7 | T10: 6.5 | U10: 2 | V10: 2 | W10: 1 | X10: 209.5 | Z10: 209.5 | AA10: 7 | AB10: 8 | AC10: 2 | AD10: 2 | BC10: 8 | BD10: 611 | BE10: =IF($O$4>0,(LARGE(($N10,$V10,$AD10,$AL10,$AT10,$BB10),1)),"0") -> 4 | BG10: 201.5 | BH10: 0 | BI10: 4 | BJ10: 409.5 | BK10: 2
A11: 3 | B11: 910069LD | C11: Nathanie Baron | D11: Ludovica | E11: B | F11: Heuvelruiters, RV. | G11: 5 | H11: 189.5 | I11: 0 | J11: 189.5 | K11: 6 | L11: 6.5 | M11: 18 | N11: 18 | O11: 3 | P11: 199 | Q11: 0 | R11: 199 | S11: 6.5 | T11: 6.5 | U11: 4 | V11: 4 | W11: 1 | X11: 208.5 | Z11: 208.5 | AA11: 7 | AB11: 7.5 | AC11: 3 | AD11: 3 | BC11: 25 | BD11: 597 | BE11: =IF($O$4>0,(LARGE(($N11,$V11,$AD11,$AL11,$AT11,$BB11),1)),"0") -> 18 | BG11: 189.5 | BH11: 0 | BI11: 7 | BJ11: 407.5 | BK11: 3
A12: 4 | B12: 945180UD | C12: Tara Draaijer | D12: Ulie | E12: B | F12: Kromme Zweppe, RV. | G12: 5 | H12: 203 | I12: 0 | J12: 203 | K12: 6 | L12: 6.5 | M12: 3 | N12: 3 | O12: 3 | P12: 198.5 | Q12: 0 | R12: 198.5 | S12: 6 | T12: 6.5 | U12: 5 | V12: 5 | Z12: 0 | AD12: 99 | BC12: 107 | BD12: 401.5 | BE12: =IF($O$4>0,(LARGE(($N12,$V12,$AD12,$AL12,$AT12,$BB12),1)),"0") -> 99 | BG12: 0 | BH12: 0 | BI12: 8 | BJ12: 401.5 | BK12: 4
A13: 5 | B13: 946518BB | C13: Nikki van Bergen | D13: Beau | E13: B | F13: Dronten, Paardencentrum | G13: 5 | H13: 198 | I13: 0 | J13: 198 | K13: 6.5 | L13: 7 | M13: 8 | N13: 8 | O13: 3 | P13: 191 | Q13: 0 | R13: 191 | S13: 6 | T13: 6 | U13: 12 | V13: 12 | W13: 1 | X13: 213 | Z13: 213 | AA13: 7 | AB13: 7 | AC13: 1 | AD13: 1 | BC13: 21 | BD13: 602 | BE13: =IF($O$4>0,(LARGE(($N13,$V13,$AD13,$AL13,$AT13,$BB13),1)),"0") -> 12 | BG13: 191 | BH13: 0 | BI13: 9 | BJ13: 411 | BK13: 5
A14: 6 | B14: 953136NB | C14: Dianne Den Besten | D14: Ninaronia Norel | E14: B | F14: Noord Veluwe, RV. PSV | G14: 5 | H14: 206 | I14: 0 | J14: 206 | K14: 6 | L14: 7 | M14: 2 | N14: 2 | O14: 3 | P14: 193 | Q14: 0 | R14: 193 | S14: 5.5 | T14: 6.5 | U14: 11 | V14: 11 | W14: 1 | X14: 200.5 | Z14: 200.5 | AA14: 5.5 | AB14: 7 | AC14: 7 | AD14: 7 | BC14: 20 | BD14: 599.5 | BE14: =IF($O$4>0,(LARGE(($N14,$V14,$AD14,$AL14,$AT14,$BB14),1)),"0") -> 11 | BG14: 193 | BH14: 0 | BI14: 9 | BJ14: 406.5 | BK14: 6
A15: 7 | B15: 946204ND | C15: Elvira Van den Dragt | D15: Nanisina | E15: B | F15: Nunspeetse Ruiterclub, RV. | G15: 5 | H15: 198.5 | I15: 0 | J15: 198.5 | K15: 7 | L15: 7 | M15: 7 | N15: 7 | O15: 3 | P15: 200 | Q15: 0 | R15: 200 | S15: 6.5 | T15: 6.5 | U15: 3 | V15: 3 | W15: 1 | X15: 197 | Z15: 197 | AA15: 6 | AB15: 6.5 | AC15: 9 | AD15: 9 | BC15: 19 | BD15: 595.5 | BE15: =IF($O$4>0,(LARGE(($N15,$V15,$AD15,$AL15,$AT15,$BB15),1)),"0") -> 9 | BG15: 197 | BH15: 0 | BI15: 10 | BJ15: 398.5 | BK15: 7
A16: 8 | B16: 953332MT | C16: Rosalie Tessemaker | D16: Mighty Mike | E16: B | F16: Horsthoekruiters, RV. | G16: 5 | H16: 197 | I16: 0 | J16: 197 | K16: 6 | L16: 6.5 | M16: 9 | N16: 9 | O16: 3 | P16: 195 | Q16: 0 | R16: 195 | S16: 5.5 | T16: 6 | U16: 8 | V16: 8 | W16: 1 | X16: 202.5 | Z16: 202.5 | AA16: 6 | AB16: 6 | AC16: 4 | AD16: 4 | BC16: 21 | BD16: 594.5 | BE16: =IF($O$4>0,(LARGE(($N16,$V16,$AD16,$AL16,$AT16,$BB16),1)),"0") -> 9 | BG16: 197 | BH16: 0 | BI16: 12 | BJ16: 397.5 | BL16: 1
A17: 9 | B17: 909460BB | C17: Susan Benedictus | D17: Exper | E17: B | F17: Flevoruiters, RV. | J17: 0 | N17: 99 | O17: 3 | P17: 194 | Q17: 0 | R17: 194 | S17: 6.5 | T17: 6.5 | U17: 9 | V17: 9 | W17: 1 | X17: 201.5 | Z17: 201.5 | AA17: 5.5 | AB17: 6.5 | AC17: 6 | AD17: 6 | BC17: 114 | BD17: 395.5 | BE17: =IF($O$4>0,(LARGE(($N17,$V17,$AD17,$AL17,$AT17,$BB17),1)),"0") -> 99 | BG17: 0 | BH17: 0 | BI17: 15 | BJ17: 395.5 | BL17: 2
A18: 10 | B18: 952533NK | C18: Anne Klein | D18: Nicolai | E18: B | F18: Heuvelruiters, RV. | J18: 0 | N18: 99 | O18: 3 | P18: 198 | Q18: 0 | R18: 198 | S18: 6.5 | T18: 6.5 | U18: 6 | V18: 6 | W18: 1 | X18: 194.5 | Z18: 194.5 | AA18: 6.5 | AB18: 7 | AC18: 11 | AD18: 11 | BC18: 116 | BD18: 392.5 | BE18: =IF($O$4>0,(LARGE(($N18,$V18,$AD18,$AL18,$AT18,$BB18),1)),"0") -> 99 | BG18: 0 | BH18: 0 | BI18: 17 | BJ18: 392.5
A19: 11 | B19: 953356MM | C19: Amber Van der Mast | D19: Mexx | E19: B | F19: Oost-Veluwse R.J.V., RV. | G19: 5 | H19: 190.5 | I19: 0 | J19: 190.5 | K19: 5 | L19: 6.5 | M19: 16 | N19: 16 | O19: 3 | P19: 191 | Q19: 0 | R19: 191 | S19: 5.5 | T19: 6.5 | U19: 13 | V19: 13 | W19: 1 | X19: 202 | Z19: 202 | AA19: 7 | AB19: 7 | AC19: 5 | AD19: 5 | BC19: 34 | BD19: 583.5 | BE19: =IF($O$4>0,(LARGE(($N19,$V19,$AD19,$AL19,$AT19,$BB19),1)),"0") -> 16 | BG19: 190.5 | BH19: 0 | BI19: 18 | BJ19: 393
A20: 12 | B20: 911752FL | C20: Max van der Linden | D20: Ferino | E20: B | F20: Dronten, Paardencentrum | G20: 5 | H20: 194.5 | I20: 0 | J20: 194.5 | K20: 6.5 | L20: 7 | M20: 11 | N20: 11 | O20: 3 | P20: 193.5 | Q20: 0 | R20: 193.5 | S20: 6 | T20: 6.5 | U20: 10 | V20: 10 | W20: 1 | X20: 197.5 | Z20: 197.5 | AA20: 6 | AB20: 7 | AC20: 8 | AD20: 8 | BC20: 29 | BD20: 585.5 | BE20: =IF($O$4>0,(LARGE(($N20,$V20,$AD20,$AL20,$AT20,$BB20),1)),"0") -> 11 | BG20: 194.5 | BH20: 0 | BI20: 18 | BJ20: 391
A21: 13 | B21: 941389CN | C21: Eipie Nagelhout | D21: Cinora | E21: B | F21: Heuvelruiters, RV. | G21: 5 | H21: 189.5 | I21: 0 | J21: 189.5 | K21: 6.5 | L21: 6.5 | M21: 17 | N21: 17 | O21: 3 | P21: 184.5 | Q21: 0 | R21: 184.5 | S21: 5 | T21: 6 | U21: 20 | V21: 20 | W21: 1 | X21: 197 | Z21: 197 | AA21: 6 | AB21: 6 | AC21: 10 | AD21: 10 | BC21: 47 | BD21: 571 | BE21: =IF($O$4>0,(LARGE(($N21,$V21,$AD21,$AL21,$AT21,$BB21),1)),"0") -> 20 | BG21: 184.5 | BH21: 0 | BI21: 27 | BJ21: 386.5
A22: 14 | B22: 924486AI | C22: Amber Van Ittersum | D22: Adolf | E22: B | F22: Marleruiters, RV. | G22: 5 | H22: 191.5 | I22: 0 | J22: 191.5 | K22: 5.5 | L22: 6.5 | M22: 15 | N22: 15 | O22: 3 | P22: 189.5 | Q22: 0 | R22: 189.5 | S22: 6 | T22: 6 | U22: 16 | V22: 16 | W22: 1 | X22: 194.5 | Z22: 194.5 | AA22: 5.5 | AB22: 6.5 | AC22: 12 | AD22: 12 | BC22: 43 | BD22: 575.5 | BE22: =IF($O$4>0,(LARGE(($N22,$V22,$AD22,$AL22,$AT22,$BB22),1)),"0") -> 16 | BG22: 189.5 | BH22: 0 | BI22: 27 | BJ22: 386
A23: 15 | B23: 589333CT | C23: Danique Timmer | D23: Cilithya W | E23: B | F23: Randmeerruiters, RV. De | G23: 5 | H23: 191.5 | I23: 0 | J23: 191.5 | K23: 6.5 | L23: 7 | M23: 14 | N23: 14 | R23: 0 | V23: 99 | W23: 1 | X23: 189.5 | Z23: 189.5 | AA23: 5.5 | AB23: 6 | AC23: 13 | AD23: 13 | BC23: 126 | BD23: 381 | BE23: =IF($O$4>0,(LARGE(($N23,$V23,$AD23,$AL23,$AT23,$BB23),1)),"0") -> 99 | BG23: 0 | BH23: 0 | BI23: 27 | BJ23: 381
A24: 16 | B24: 954402MV | C24: Saskia Achterkamp - de Vries | D24: My Gentle Morka | E24: B | F24: WWNA, RV. | G24: 5 | H24: 187 | I24: 0 | J24: 187 | K24: 5.5 | L24: 6.5 | M24: 22 | N24: 22 | O24: 3 | P24: 195 | Q24: 0 | R24: 195 | S24: 6 | T24: 6.5 | U24: 7 | V24: 7 | Z24: 0 | AD24: 99 | BC24: 128 | BD24: 382 | BE24: =IF($O$4>0,(LARGE(($N24,$V24,$AD24,$AL24,$AT24,$BB24),1)),"0") -> 99 | BG24: 0 | BH24: 0 | BI24: 29 | BJ24: 382
A25: 17 | B25: 848631HB | C25: Tanja Boeve | D25: Haisha | E25: B | F25: Epe, RV. HV. | G25: 5 | H25: 193.5 | I25: 0 | J25: 193.5 | K25: 6.5 | L25: 7 | M25: 13 | N25: 13 | O25: 3 | P25: 185.5 | Q25: 0 | R25: 185.5 | S25: 6 | T25: 6.5 | U25: 19 | V25: 19 | Z25: 0 | AD25: 99 | BC25: 131 | BD25: 379 | BE25: =IF($O$4>0,(LARGE(($N25,$V25,$AD25,$AL25,$AT25,$BB25),1)),"0") -> 99 | BG25: 0 | BH25: 0 | BI25: 32 | BJ25: 379
A26: 18 | B26: 921293JT | C26: Lynn Van Tienderen | D26: Jackie | E26: B | F26: Flevoruiters, RV. | G26: 5 | H26: 189 | I26: 0 | J26: 189 | K26: 6.5 | L26: 6.5 | M26: 19 | N26: 19 | R26: 0 | V26: 99 | W26: 1 | X26: 181.5 | Z26: 181.5 | AA26: 5.5 | AB26: 6 | AC26: 14 | AD26: 14 | BC26: 132 | BD26: 370.5 | BE26: =IF($O$4>0,(LARGE(($N26,$V26,$AD26,$AL26,$AT26,$BB26),1)),"0") -> 99 | BG26: 0 | BH26: 0 | BI26: 33 | BJ26: 370.5
A27: 19 | B27: 932101GJ | C27: Sandy De Jong - Tichelaar | D27: Ghaira | E27: B | F27: Dronten, Paardencentrum | G27: 5 | H27: 188 | I27: 0 | J27: 188 | K27: 5.5 | L27: 6 | M27: 21 | N27: 21 | O27: 3 | P27: 178 | Q27: 0 | R27: 178 | S27: 5 | T27: 6 | U27: 23 | V27: 23 | W27: 1 | X27: 174.5 | Z27: 174.5 | AA27: 5 | AB27: 6 | AC27: 15 | AD27: 15 | BC27: 59 | BD27: 540.5 | BE27: =IF($O$4>0,(LARGE(($N27,$V27,$AD27,$AL27,$AT27,$BB27),1)),"0") -> 23 | BG27: 178 | BH27: 0 | BI27: 36 | BJ27: 362.5
A28: 20 | B28: 949846GS | C28: Ruut Schaly | D28: Golden | E28: B | F28: Nunspeetse Ruiterclub, RV. | G28: 5 | H28: 188.5 | I28: 0 | J28: 188.5 | K28: 5.5 | L28: 6.5 | M28: 20 | N28: 20 | O28: 3 | P28: 189.5 | Q28: 0 | R28: 189.5 | S28: 5.5 | T28: 6.5 | U28: 17 | V28: 17 | Z28: 0 | AD28: 99 | BC28: 136 | BD28: 378 | BE28: =IF($O$4>0,(LARGE(($N28,$V28,$AD28,$AL28,$AT28,$BB28),1)),"0") -> 99 | BG28: 0 | BH28: 0 | BI28: 37 | BJ28: 378
A29: 21 | B29: 905389JB | C29: Mirne Berends | D29: Jaylano | E29: B | F29: Nunspeetse Ruiterclub, RV. | G29: 5 | H29: 179.5 | I29: 0 | J29: 179.5 | K29: 7 | L29: 7 | M29: 27 | N29: 27 | O29: 3 | P29: 181 | Q29: 0 | R29: 181 | S29: 5.5 | T29: 5.5 | U29: 22 | V29: 22 | Z29: 0 | AD29: 99 | BC29: 148 | BD29: 360.5 | BE29: =IF($O$4>0,(LARGE(($N29,$V29,$AD29,$AL29,$AT29,$BB29),1)),"0") -> 99 | BG29: 0 | BH29: 0 | BI29: 49 | BJ29: 360.5
A30: 22 | B30: 935588HL | C30: Tess Lubbring | D30: Huub | E30: B | F30: Flevoruiters, RV. | G30: 5 | H30: 201.5 | I30: 0 | J30: 201.5 | K30: 6 | L30: 6.5 | M30: 5 | N30: 5 | R30: 0 | V30: 99 | Z30: 0 | AD30: 99 | BC30: 203 | BD30: 201.5 | BE30: =IF($O$4>0,(LARGE(($N30,$V30,$AD30,$AL30,$AT30,$BB30),1)),"0") -> 99 | BG30: 0 | BH30: 0 | BI30: 104 | BJ30: 201.5
A31: 23 | B31: 954482DK | C31: Suzanne Kroese | D31: Dilana | E31: B | F31: Noord Veluwe, RV. PSV | G31: 5 | H31: 201 | I31: 0 | J31: 201 | K31: 6.5 | L31: 7 | M31: 6 | N31: 6 | R31: 0 | V31: 99 | Z31: 0 | AD31: 99 | BC31: 204 | BD31: 201 | BE31: =IF($O$4>0,(LARGE(($N31,$V31,$AD31,$AL31,$AT31,$BB31),1)),"0") -> 99 | BG31: 0 | BH31: 0 | BI31: 105 | BJ31: 201
A32: 24 | B32: 950202MA | C32: Han Aalmans | D32: Morris G | E32: B | F32: Noord Veluwe, RV. PSV | G32: 5 | H32: 196 | I32: 0 | J32: 196 | K32: 6.5 | L32: 6.5 | M32: 10 | N32: 10 | R32: 0 | V32: 99 | Z32: 0 | AD32: 99 | BC32: 208 | BD32: 196 | BE32: =IF($O$4>0,(LARGE(($N32,$V32,$AD32,$AL32,$AT32,$BB32),1)),"0") -> 99 | BG32: 0 | BH32: 0 | BI32: 109 | BJ32: 196
A33: 25 | B33: 939004MB | C33: Anne van den Belt | D33: Million dollar babe | E33: B | F33: Heuvelruiters, RV. | G33: 5 | H33: 194 | I33: 0 | J33: 194 | K33: 5.5 | L33: 6.5 | M33: 12 | N33: 12 | R33: 0 | V33: 99 | Z33: 0 | AD33: 99 | BC33: 210 | BD33: 194 | BE33: =IF($O$4>0,(LARGE(($N33,$V33,$AD33,$AL33,$AT33,$BB33),1)),"0") -> 99 | BG33: 0 | BH33: 0 | BI33: 111 | BJ33: 194
A34: 26 | B34: 931134EA | C34: Arianne van Asselt | D34: Evita Ardonie | E34: B | F34: Oost-Veluwse R.J.V., RV. | J34: 0 | N34: 99 | O34: 3 | P34: 190.5 | Q34: 0 | R34: 190.5 | S34: 5.5 | T34: 6 | U34: 14 | V34: 14 | Z34: 0 | AD34: 99 | BC34: 212 | BD34: 190.5 | BE34: =IF($O$4>0,(LARGE(($N34,$V34,$AD34,$AL34,$AT34,$BB34),1)),"0") -> 99 | BG34: 0 | BH34: 0 | BI34: 113 | BJ34: 190.5
A35: 27 | B35: 955287TL | C35: Jesse van Leeuwen | D35: Trovao | E35: B | F35: Flevoruiters, RV. | J35: 0 | N35: 99 | O35: 3 | P35: 189.5 | Q35: 0 | R35: 189.5 | S35: 6 | T35: 6.5 | U35: 15 | V35: 15 | Z35: 0 | AD35: 99 | BC35: 213 | BD35: 189.5 | BE35: =IF($O$4>0,(LARGE(($N35,$V35,$AD35,$AL35,$AT35,$BB35),1)),"0") -> 99 | BG35: 0 | BH35: 0 | BI35: 114 | BJ35: 189.5
A36: 28 | B36: 954920KS | C36: Margreet De Ruiter | D36: Katja | E36: B | F36: WWNA, RV. | J36: 0 | N36: 99 | O36: 3 | P36: 187.5 | Q36: 0 | R36: 187.5 | S36: 5 | T36: 6 | U36: 18 | V36: 18 | Z36: 0 | AD36: 99 | BC36: 216 | BD36: 187.5 | BE36: =IF($O$4>0,(LARGE(($N36,$V36,$AD36,$AL36,$AT36,$BB36),1)),"0") -> 99 | BG36: 0 | BH36: 0 | BI36: 117 | BJ36: 187.5
A37: 29 | B37: 953277UQ | C37: Eline Quik | D37: Uncle Bob | E37: B | F37: Hulshorst, RV. | J37: 0 | N37: 99 | O37: 3 | P37: 184.5 | Q37: 0 | R37: 184.5 | S37: 5 | T37: 6 | U37: 20 | V37: 20 | Z37: 0 | AD37: 99 | BC37: 218 | BD37: 184.5 | BE37: =IF($O$4>0,(LARGE(($N37,$V37,$AD37,$AL37,$AT37,$BB37),1)),"0") -> 99 | BG37: 0 | BH37: 0 | BI37: 119 | BJ37: 184.5
A38: 30 | B38: 949565LZ | C38: Kyara van der Ziel | D38: Lindseylina | E38: B | F38: Noord Veluwe, RV. PSV | G38: 5 | H38: 186.5 | I38: 0 | J38: 186.5 | K38: 5.5 | L38: 6 | M38: 23 | N38: 23 | R38: 0 | V38: 99 | Z38: 0 | AD38: 99 | BC38: 221 | BD38: 186.5 | BE38: =IF($O$4>0,(LARGE(($N38,$V38,$AD38,$AL38,$AT38,$BB38),1)),"0") -> 99 | BG38: 0 | BH38: 0 | BI38: 122 | BJ38: 186.5
A39: 31 | B39: 942368LH | C39: Sabine Van der Ham | D39: Lobke Uilkje fan Tomas-Hof | E39: B | F39: Schaapskooiruiters, RV. | G39: 5 | H39: 185 | I39: 0 | J39: 185 | K39: 6 | L39: 6.5 | M39: 24 | N39: 24 | R39: 0 | V39: 99 | Z39: 0 | AD39: 99 | BC39: 222 | BD39: 185 | BE39: =IF($O$4>0,(LARGE(($N39,$V39,$AD39,$AL39,$AT39,$BB39),1)),"0") -> 99 | BG39: 0 | BH39: 0 | BI39: 123 | BJ39: 185
A40: 32 | B40: 916791KM | C40: Diane Stuart - Mulder | D40: King Of Scotsss | E40: B | F40: Lelyruiters, RV. | G40: 5 | H40: 184.5 | I40: 0 | J40: 184.5 | K40: 5 | L40: 6 | M40: 25 | N40: 25 | R40: 0 | V40: 99 | Z40: 0 | AD40: 99 | BC40: 223 | BD40: 184.5 | BE40: =IF($O$4>0,(LARGE(($N40,$V40,$AD40,$AL40,$AT40,$BB40),1)),"0") -> 99 | BG40: 0 | BH40: 0 | BI40: 124 | BJ40: 184.5
A41: 33 | B41: 922148IH | C41: Andrea Wullink | D41: Indiana | E41: B | F41: Schaapskooiruiters, RV. | G41: 5 | H41: 180 | I41: 0 | J41: 180 | K41: 5 | L41: 5.5 | M41: 26 | N41: 26 | R41: 0 | V41: 99 | Z41: 0 | AD41: 99 | BC41: 224 | BD41: 180 | BE41: =IF($O$4>0,(LARGE(($N41,$V41,$AD41,$AL41,$AT41,$BB41),1)),"0") -> 99 | BG41: 0 | BH41: 0 | BI41: 125 | BJ41: 180
A42: 34 | B42: 941674MV | C42: Joëlla De Vries | D42: Mardando | E42: B | F42: Marleruiters, RV. | G42: 5 | H42: 177.5 | I42: 0 | J42: 177.5 | K42: 5 | L42: 5.5 | M42: 28 | N42: 28 | R42: 0 | V42: 99 | Z42: 0 | AD42: 99 | BC42: 226 | BD42: 177.5 | BE42: =IF($O$4>0,(LARGE(($N42,$V42,$AD42,$AL42,$AT42,$BB42),1)),"0") -> 99 | BG42: 0 | BH42: 0 | BI42: 127 | BJ42: 177.5

Sheet L1
A1: Selectie uitslagen
C2: 1 | D2: =FLOOR((C2+3)/4,1) -> 1 | H2: 192 | I2: 190 | J2: =H2+I2 -> 382 | N2: 1 | P2: 193 | Q2: 193 | R2: =P2+Q2 -> 386 | V2: 2 | X2: 198 | Y2: 198 | Z2: =X2+Y2 -> 396 | AD2: 3 | AF2: 177 | AG2: 177 | AH2: =AF2+AG2 -> 354 | AL2: 4 | AN2: 178 | AO2: 178 | AP2: =AN2+AO2 -> 356 | AT2: 5 | AV2: 179 | AW2: 179 | AX2: =AV2+AW2 -> 358 | BB2: 6 | BC2: =N2+V2+AD2+AL2+AT2+BB2 -> 21 | BD2: =J2+R2+Z2+AH2+AP2+AX2 -> 2232 | BE2: =IF($O$4>0,(LARGE(($N2,$V2,$AD2,$AL2,$AT2,$BB2),1)),"0") -> 6 | BF2: =IF($O$4>0,(LARGE(($N2,$V2,$AD2,$AL2,$AT2,$BB2),2)),"0") -> 5 | BG2: 354 | BH2: 354 | BI2: =BC2-BE2-BF2 -> 10 | BJ2: =BD2-BG2-BH2 -> 1524
A3: Kring: | C3: =Instellingen!B3 -> Kring NVF | F3: Aantal afvaardiging Regio: | O3: 6 | BC3: Aantal wedstrijden: | BL3: =Instellingen!B6 -> 3
A4: Klasse: | C4: L1 | F4: Aantal afval resultaten: | O4: =Instellingen!B7 -> 1
A5: Cat.: | F5: Plaatsingspunten niet gestart: | O5: =Instellingen!B5 -> 99 | BC5: Aantal reserves: | BL5: 2
F6: Lokatie: | G6: =Instellingen!B36 -> Hattem | O6: =Instellingen!B37 -> Ermelo | W6: =Instellingen!B38 -> Nunspeet | AE6: =Instellingen!B39 -> 0 | AM6: =Instellingen!B40 -> 0 | AU6: =Instellingen!B41 -> 0 | BC6: Dressuur | BI6: Pnt. 60% regel | BL6: 180
F7: Datum: | G7: =Instellingen!C36 -> 06 jun 2022 | O7: =Instellingen!C37 -> 18 jun 2022 | W7: =Instellingen!C38 -> 02 jul 2022 | AE7: =Instellingen!C39 ->  | AM7: =Instellingen!C40 ->  | AU7: =Instellingen!C41 ->  | BC7: Tot. | BD7: Tot. | BE7: afval | BF7: afval | BG7: afval | BH7: afval | BI7: Beste | BJ7: Beste
A8: Pl. | B8: Comb.nr. | C8: Ruiter/amazone | D8: Paard/pony | E8: kl. | F8: vereniging | G8: Ring | H8: pnt.C | I8: pnt.H | J8: pnt.tot | K8: ex 1 | L8: ex 2 | M8: pl. | N8: pl.p. | O8: Ring | P8: pnt.C | Q8: pnt.H | R8: pnt.tot. | S8: ex 1 | T8: ex 2 | U8: pl. | V8: pl.p. | W8: Ring | X8: pnt.C | Y8: pnt. H | Z8: pnt.tot. | AA8: ex 1 | AB8: ex 2 | AC8: pl. | AD8: pl.p. | AE8: Ring | AF8: pnt.C | AG8: pnt.H | AH8: pnt.tot. | AI8: ex 1 | AJ8: ex 2 | AK8: pl. | AL8: pl.p. | AM8: Ring | AN8: pnt.C | AO8: pnt.H | AP8: pnt.tot. | AQ8: ex 1 | AR8: ex 2 | AS8: pl. | AT8: pl.p. | AU8: Ring | AV8: pnt.C | AW8: pnt.H | AX8: pnt.tot. | AY8: ex 1 | AZ8: ex 2 | BA8: pl. | BB8: pl.p. | BC8: pl.pnt | BD8: punten | BE8: pl.pnt | BF8: pl.pnt | BG8: punten | BH8: punten | BI8: pl.pnt | BJ8: punten | BK8: Afv. | BL8: Res. | BM8: Afv. Regio | BN8: opmerking
A9: 1 | B9: 914934LW | C9: Jeanet Witteveen | D9: Little Star B | E9: L1 | F9: Noord Veluwe, RV. PSV | G9: 7 | H9: 203 | I9: 0 | J9: =H9+I9 -> 203 | K9: 7 | L9: 7.5 | M9: 1 | N9: 1 | O9: 3 | P9: 199 | Q9: 0 | R9: =P9+Q9 -> 199 | S9: 6 | T9: 7 | U9: 9 | V9: 9 | W9: 1 | X9: 204.5 | Z9: =X9+Y9 -> 204.5 | AA9: 7 | AB9: 7.5 | AC9: 1 | AD9: 1 | BC9: =N9+V9+AD9+AL9+AT9+BB9 -> 11 | BD9: =J9+R9+Z9+AH9+AP9+AX9 -> 606.5 | BE9: =IF($O$4>0,(LARGE(($N9,$V9,$AD9,$AL9,$AT9,$BB9),1)),"0") -> 9 | BG9: 199 | BH9: 0 | BI9: =BC9-BE9-BF9 -> 2 | BJ9: =BD9-BG9-BH9 -> 407.5 | BK9: 1 | BN9: Kringkampioen
A10: 2 | B10: 938824MV | C10: Julia Vrolijken | D10: Miliane SC | E10: L1 | F10: Nunspeetse Ruiterclub, RV. | J10: 0 | N10: 99 | O10: 3 | P10: 219.5 | Q10: 0 | R10: 219.5 | S10: 7.5 | T10: 7 | U10: 1 | V10: 1 | W10: 1 | X10: 203 | Z10: 203 | AA10: 7 | AB10: 6.5 | AC10: 2 | AD10: 2 | BC10: 102 | BD10: 422.5 | BE10: =IF($O$4>0,(LARGE(($N10,$V10,$AD10,$AL10,$AT10,$BB10),1)),"0") -> 99 | BG10: 0 | BH10: 0 | BI10: 3 | BJ10: 422.5 | BK10: 2
A11: 3 | B11: 946858NS | C11: Laura Spronk | D11: New Star | E11: L1 | F11: Heuvelruiters, RV. | G11: 7 | H11: 198.5 | I11: 0 | J11: 198.5 | K11: 6.5 | L11: 7 | M11: 2 | N11: 2 | O11: 3 | P11: 217.5 | Q11: 0 | R11: 217.5 | S11: 7 | T11: 7.5 | U11: 2 | V11: 2 | Z11: 0 | AD11: 99 | BC11: 103 | BD11: 416 | BE11: =IF($O$4>0,(LARGE(($N11,$V11,$AD11,$AL11,$AT11,$BB11),1)),"0") -> 99 | BG11: 0 | BH11: 0 | BI11: 4 | BJ11: 416 | BK11: 3
A12: 4 | B12: 938825NV | C12: Julia Vrolijken | D12: Nashville SC | E12: L1 | F12: Nunspeetse Ruiterclub, RV. | G12: 7 | H12: 197.5 | I12: 0 | J12: 197.5 | K12: 6.5 | L12: 6.5 | M12: 3 | N12: 3 | O12: 3 | P12: 201.5 | Q12: 0 | R12: 201.5 | S12: 7 | T12: 7 | U12: 7 | V12: 7 | W12: 1 | X12: 199 | Z12: 199 | AA12: 6.5 | AB12: 7 | AC12: 4 | AD12: 4 | BC12: 14 | BD12: 598 | BE12: =IF($O$4>0,(LARGE(($N12,$V12,$AD12,$AL12,$AT12,$BB12),1)),"0") -> 7 | BG12: 201.5 | BH12: 0 | BI12: 7 | BJ12: 396.5 | BK12: 4
A13: 5 | B13: 954280KH | C13: Patrieck Van Hoek | D13: Kiona | E13: L1 | F13: Noord Veluwe, RV. PSV | G13: 7 | H13: 186.5 | I13: 0 | J13: 186.5 | K13: 6.5 | L13: 6.5 | M13: 11 | N13: 11 | O13: 3 | P13: 212 | Q13: 0 | R13: 212 | S13: 6.5 | T13: 7 | U13: 4 | V13: 4 | W13: 1 | X13: 198.5 | Z13: 198.5 | AA13: 6.5 | AB13: 6.5 | AC13: 5 | AD13: 5 | BC13: 20 | BD13: 597 | BE13: =IF($O$4>0,(LARGE(($N13,$V13,$AD13,$AL13,$AT13,$BB13),1)),"0") -> 11 | BG13: 186.5 | BH13: 0 | BI13: 9 | BJ13: 410.5 | BK13: 5
A14: 6 | B14: 928668MB | C14: Dianne Den Besten | D14: Michigan DB | E14: L1 | F14: Noord Veluwe, RV. PSV | G14: 7 | H14: 183.5 | I14: 0 | J14: 183.5 | K14: 6.5 | L14: 6.5 | M14: 16 | N14: 16 | O14: 3 | P14: 216.5 | Q14: 0 | R14: 216.5 | S14: 7.5 | T14: 8 | U14: 3 | V14: 3 | W14: 1 | X14: 193 | Z14: 193 | AA14: 7 | AB14: 6.5 | AC14: 7 | AD14: 7 | BC14: 26 | BD14: 593 | BE14: =IF($O$4>0,(LARGE(($N14,$V14,$AD14,$AL14,$AT14,$BB14),1)),"0") -> 16 | BG14: 183.5 | BH14: 0 | BI14: 10 | BJ14: 409.5 | BK14: 6
A15: 7 | B15: 932227LK | C15: Susanne Kogelman | D15: Dansa's La Dansa | E15: L1 | F15: Heuvelruiters, RV. | G15: 7 | H15: 192 | I15: 0 | J15: 192 | K15: 6 | L15: 6.5 | M15: 9 | N15: 9 | R15: 0 | V15: 99 | W15: 1 | X15: 200 | Z15: 200 | AA15: 6 | AB15: 7 | AC15: 3 | AD15: 3 | BC15: 111 | BD15: 392 | BE15: =IF($O$4>0,(LARGE(($N15,$V15,$AD15,$AL15,$AT15,$BB15),1)),"0") -> 99 | BG15: 0 | BH15: 0 | BI15: 12 | BJ15: 392 | BL15: 1
A16: 8 | B16: 904124KH | C16: Kayleigh De Haas | D16: Kazan-S | E16: L1 | F16: WWNA, RV. | G16: 7 | H16: 193.5 | I16: 0 | J16: 193.5 | K16: 6.5 | L16: 6.5 | M16: 7 | N16: 7 | O16: 3 | P16: 207 | Q16: 0 | R16: 207 | S16: 7 | T16: 7.5 | U16: 5 | V16: 5 | W16: 1 | X16: 187.5 | Z16: 187.5 | AA16: 6.5 | AB16: 6.5 | AC16: 11 | AD16: 11 | BC16: 23 | BD16: 588 | BE16: =IF($O$4>0,(LARGE(($N16,$V16,$AD16,$AL16,$AT16,$BB16),1)),"0") -> 11 | BG16: 187.5 | BH16: 0 | BI16: 12 | BJ16: 400.5 | BL16: 2
A17: 9 | B17: 949698MS | C17: Laura Spronk | D17: Mrs. Toto | E17: L1 | F17: Heuvelruiters, RV. | G17: 7 | H17: 197 | I17: 0 | J17: 197 | K17: 6.5 | L17: 7 | M17: 4 | N17: 4 | O17: 3 | P17: 186.5 | Q17: 0 | R17: 186.5 | S17: 6 | T17: 7 | U17: 11 | V17: 11 | W17: 1 | X17: 191 | Z17: 191 | AA17: 6 | AB17: 6 | AC17: 9 | AD17: 9 | BC17: 24 | BD17: 574.5 | BE17: =IF($O$4>0,(LARGE(($N17,$V17,$AD17,$AL17,$AT17,$BB17),1)),"0") -> 11 | BG17: 186.5 | BH17: 0 | BI17: 13 | BJ17: 388
A18: 10 | B18: 935858CB | C18: Wendy Buhler | D18: Camara Z | E18: L1 | F18: Hulshorst, RV. | G18: 7 | H18: 192.5 | I18: 0 | J18: 192.5 | K18: 6.5 | L18: 6.5 | M18: 8 | N18: 8 | O18: 3 | P18: 200.5 | Q18: 0 | R18: 200.5 | S18: 7 | T18: 7 | U18: 8 | V18: 8 | W18: 1 | X18: 188.5 | Z18: 188.5 | AA18: 6 | AB18: 7 | AC18: 10 | AD18: 10 | BC18: 26 | BD18: 581.5 | BE18: =IF($O$4>0,(LARGE(($N18,$V18,$AD18,$AL18,$AT18,$BB18),1)),"0") -> 10 | BG18: 188.5 | BH18: 0 | BI18: 16 | BJ18: 393
A19: 11 | B19: 940056ET | C19: Femke Van Triest | D19: E-Berlina | E19: L1 | F19: Heuvelruiters, RV. | G19: 7 | H19: 186 | I19: 0 | J19: 186 | K19: 6 | L19: 6.5 | M19: 12 | N19: 12 | O19: 3 | P19: 202 | Q19: 0 | R19: 202 | S19: 7 | T19: 7 | U19: 6 | V19: 6 | Z19: 0 | AD19: 99 | BC19: 117 | BD19: 388 | BE19: =IF($O$4>0,(LARGE(($N19,$V19,$AD19,$AL19,$AT19,$BB19),1)),"0") -> 99 | BG19: 0 | BH19: 0 | BI19: 18 | BJ19: 388
A20: 12 | B20: 918384EF | C20: Rosa Foppen | D20: Elena | E20: L1 | F20: Flevoruiters, RV. | G20: 7 | H20: 189.5 | I20: 0 | J20: 189.5 | K20: 6.5 | L20: 7 | M20: 10 | N20: 10 | O20: 3 | P20: 195 | Q20: 0 | R20: 195 | S20: 7 | T20: 7 | U20: 10 | V20: 10 | W20: 1 | X20: 179 | Z20: 179 | AA20: 6.5 | AB20: 6.5 | AC20: 13 | AD20: 13 | BC20: 33 | BD20: 563.5 | BE20: =IF($O$4>0,(LARGE(($N20,$V20,$AD20,$AL20,$AT20,$BB20),1)),"0") -> 13 | BG20: 179 | BH20: 0 | BI20: 20 | BJ20: 384.5
A21: 13 | B21: 904370LP | C21: Petrice Polinder | D21: Leon | E21: L1 | F21: Nunspeetse Ruiterclub, RV. | G21: 7 | H21: 185.5 | I21: 0 | J21: 185.5 | K21: 6.5 | L21: 6.5 | M21: 13 | N21: 13 | O21: 3 | P21: 180 | Q21: 0 | R21: 180 | S21: 6 | T21: 7 | U21: 14 | V21: 14 | W21: 1 | X21: 183 | Z21: 183 | AA21: 6 | AB21: 6 | AC21: 12 | AD21: 12 | BC21: 39 | BD21: 548.5 | BE21: =IF($O$4>0,(LARGE(($N21,$V21,$AD21,$AL21,$AT21,$BB21),1)),"0") -> 14 | BG21: 180 | BH21: 0 | BI21: 25 | BJ21: 368.5
A22: 14 | B22: 866080IA | C22: Danielle Akster | D22: Idolieni | E22: L1 | F22: Nunspeetse Ruiterclub, RV. | J22: 0 | N22: 99 | O22: 3 | P22: 146 | Q22: 0 | R22: 146 | S22: 4 | T22: 4 | U22: 18 | V22: 18 | W22: 1 | X22: 193 | Z22: 193 | AA22: 6 | AB22: 7 | AC22: 8 | AD22: 8 | BC22: 125 | BD22: 339 | BE22: =IF($O$4>0,(LARGE(($N22,$V22,$AD22,$AL22,$AT22,$BB22),1)),"0") -> 99 | BG22: 0 | BH22: 0 | BI22: 26 | BJ22: 339
A23: 15 | B23: 938090NH | C23: Chantalle Halfwerk | D23: Dansa's Nodan | E23: L1 | F23: Heuvelruiters, RV. | G23: 7 | H23: 183.5 | I23: 0 | J23: 183.5 | K23: 6.5 | L23: 6.5 | M23: 16 | N23: 16 | O23: 3 | P23: 181.5 | Q23: 0 | R23: 181.5 | S23: 6 | T23: 6.5 | U23: 13 | V23: 13 | Z23: 0 | AD23: 99 | BC23: 128 | BD23: 365 | BE23: =IF($O$4>0,(LARGE(($N23,$V23,$AD23,$AL23,$AT23,$BB23),1)),"0") -> 99 | BG23: 0 | BH23: 0 | BI23: 29 | BJ23: 365
A24: 16 | B24: 866179KB | C24: Annelise Boeve | D24: King Kenzo | E24: L1 | F24: Heuvelruiters, RV. | G24: 7 | H24: 185 | I24: 0 | J24: 185 | K24: 6 | L24: 6 | M24: 14 | N24: 14 | O24: 3 | P24: 178 | Q24: 0 | R24: 178 | S24: 6 | T24: 7 | U24: 16 | V24: 16 | Z24: 0 | AD24: 99 | BC24: 129 | BD24: 363 | BE24: =IF($O$4>0,(LARGE(($N24,$V24,$AD24,$AL24,$AT24,$BB24),1)),"0") -> 99 | BG24: 0 | BH24: 0 | BI24: 30 | BJ24: 363
A25: 17 | B25: 888868BM | C25: Yvette Mijnheer | D25: Brechtje Van 't Klaphek | E25: L1 | F25: Nunspeetse Ruiterclub, RV. | G25: 7 | H25: 178.5 | I25: 0 | J25: 178.5 | K25: 6 | L25: 6.5 | M25: 21 | N25: 21 | O25: 3 | P25: 183 | Q25: 0 | R25: 183 | S25: 6.5 | T25: 7 | U25: 12 | V25: 12 | Z25: 0 | AD25: 99 | BC25: 132 | BD25: 361.5 | BE25: =IF($O$4>0,(LARGE(($N25,$V25,$AD25,$AL25,$AT25,$BB25),1)),"0") -> 99 | BG25: 0 | BH25: 0 | BI25: 33 | BJ25: 361.5
A26: 18 | B26: 914192ZB | C26: Nicole Brummel | D26: Zavannah Stella Fan Aurum | E26: L1 | F26: Epe, RV. HV. | G26: 7 | H26: 195.5 | I26: 0 | J26: 195.5 | K26: 7 | L26: 7 | M26: 5 | N26: 5 | R26: 0 | V26: 99 | Z26: 0 | AD26: 99 | BC26: 203 | BD26: 195.5 | BE26: =IF($O$4>0,(LARGE(($N26,$V26,$AD26,$AL26,$AT26,$BB26),1)),"0") -> 99 | BG26: 0 | BH26: 0 | BI26: 104 | BJ26: 195.5
A27: 19 | B27: 903339JM | C27: Milan Mulder | D27: Jive H | F27: Nunspeetse Ruiterclub, RV. | J27: 0 | N27: 99 | R27: 0 | V27: 99 | W27: 1 | X27: 193.5 | Z27: 193.5 | AA27: 6.5 | AB27: 6.5 | AC27: 6 | AD27: 6 | BC27: 204 | BD27: 193.5 | BE27: =IF($O$4>0,(LARGE(($N27,$V27,$AD27,$AL27,$AT27,$BB27),1)),"0") -> 99 | BG27: 0 | BH27: 0 | BI27: 105 | BJ27: 193.5
A28: 20 | B28: 936304MB | C28: Priscilla Bouwmeester | D28: Mara v.d. haflinger hoeve | E28: L1 | F28: Schaapskooiruiters, RV. | G28: 7 | H28: 194 | I28: 0 | J28: 194 | K28: 7 | L28: 7 | M28: 6 | N28: 6 | R28: 0 | V28: 99 | Z28: 0 | AD28: 99 | BC28: 204 | BD28: 194 | BE28: =IF($O$4>0,(LARGE(($N28,$V28,$AD28,$AL28,$AT28,$BB28),1)),"0") -> 99 | BG28: 0 | BH28: 0 | BI28: 105 | BJ28: 194
A29: 21 | B29: 891229LK | C29: Kimberley Knol | D29: Larsson | E29: L1 | F29: Marleruiters, RV. | G29: 7 | H29: 184 | I29: 0 | J29: 184 | K29: 6.5 | L29: 6.5 | M29: 15 | N29: 15 | R29: 0 | V29: 99 | Z29: 0 | AD29: 99 | BC29: 213 | BD29: 184 | BE29: =IF($O$4>0,(LARGE(($N29,$V29,$AD29,$AL29,$AT29,$BB29),1)),"0") -> 99 | BG29: 0 | BH29: 0 | BI29: 114 | BJ29: 184
A30: 22 | B30: 912708MD | C30: Chantal Douwma | D30: Miranza | E30: L1 | F30: Pothoven (pa), HS | J30: 0 | N30: 99 | O30: 3 | P30: 180 | Q30: 0 | R30: 180 | S30: 5 | T30: 6 | U30: 15 | V30: 15 | Z30: 0 | AD30: 99 | BC30: 213 | BD30: 180 | BE30: =IF($O$4>0,(LARGE(($N30,$V30,$AD30,$AL30,$AT30,$BB30),1)),"0") -> 99 | BG30: 0 | BH30: 0 | BI30: 114 | BJ30: 180
A31: 23 | B31: 933053KB | C31: Bianca Goeman - Boutkan | D31: King D | E31: L1 | F31: Flevoruiters, RV. | J31: 0 | N31: 99 | O31: 3 | P31: 174.5 | Q31: 0 | R31: 174.5 | S31: 6 | T31: 6 | U31: 17 | V31: 17 | Z31: 0 | AD31: 99 | BC31: 215 | BD31: 174.5 | BE31: =IF($O$4>0,(LARGE(($N31,$V31,$AD31,$AL31,$AT31,$BB31),1)),"0") -> 99 | BG31: 0 | BH31: 0 | BI31: 116 | BJ31: 174.5
A32: 24 | B32: 674154CN | C32: Ferdou Nijenhuis | D32: Calindo | E32: L1 | F32: Nunspeetse Ruiterclub, RV. | G32: 7 | H32: 182 | I32: 0 | J32: 182 | K32: 6 | L32: 6 | M32: 18 | N32: 18 | R32: 0 | V32: 99 | Z32: 0 | AD32: 99 | BC32: 216 | BD32: 182 | BE32: =IF($O$4>0,(LARGE(($N32,$V32,$AD32,$AL32,$AT32,$BB32),1)),"0") -> 99 | BG32: 0 | BH32: 0 | BI32: 117 | BJ32: 182
A33: 25 | B33: 947342NH | C33: Alice Hofmeijer | D33: Nightmare | E33: L1 | F33: Stal Rodeo, RV. RSV. | G33: 7 | H33: 181 | I33: 0 | J33: 181 | K33: 6 | L33: 6 | M33: 19 | N33: 19 | R33: 0 | V33: 99 | Z33: 0 | AD33: 99 | BC33: 217 | BD33: 181 | BE33: =IF($O$4>0,(LARGE(($N33,$V33,$AD33,$AL33,$AT33,$BB33),1)),"0") -> 99 | BG33: 0 | BH33: 0 | BI33: 118 | BJ33: 181
A34: 26 | B34: 925939QH | C34: Carlien Hanraets | D34: Quick Mail van de Tol | E34: L1 | F34: Randmeerruiters, RV. De | G34: 7 | H34: 180.5 | I34: 0 | J34: 180.5 | K34: 5.5 | L34: 6 | M34: 20 | N34: 20 | R34: 0 | V34: 99 | Z34: 0 | AD34: 99 | BC34: 218 | BD34: 180.5 | BE34: =IF($O$4>0,(LARGE(($N34,$V34,$AD34,$AL34,$AT34,$BB34),1)),"0") -> 99 | BG34: 0 | BH34: 0 | BI34: 119 | BJ34: 180.5
A35: 27 | B35: 853567HM | C35: Gertie Marskamp | D35: Hello Tangelo | E35: L1 | F35: Horsthoekruiters, RV. | G35: 7 | H35: 178 | I35: 0 | J35: 178 | K35: 5 | L35: 6 | M35: 22 | N35: 22 | R35: 0 | V35: 99 | Z35: 0 | AD35: 99 | BC35: 220 | BD35: 178 | BE35: =IF($O$4>0,(LARGE(($N35,$V35,$AD35,$AL35,$AT35,$BB35),1)),"0") -> 99 | BG35: 0 | BH35: 0 | BI35: 121 | BJ35: 178
A36: 28 | B36: 922801HD | C36: Maaike Dijkslag | D36: Hazelberg's Libanon | E36: L1 | F36: Schaapskooiruiters, RV. | G36: 7 | H36: 175 | I36: 0 | J36: 175 | K36: 5.5 | L36: 6 | M36: 23 | N36: 23 | R36: 0 | V36: 99 | Z36: 0 | AD36: 99 | BC36: 221 | BD36: 175 | BE36: =IF($O$4>0,(LARGE(($N36,$V36,$AD36,$AL36,$AT36,$BB36),1)),"0") -> 99 | BG36: 0 | BH36: 0 | BI36: 122 | BJ36: 175
A37: 29 | B37: 926686WV | C37: Marlies Visser | D37: Willem G.l | E37: L1 | F37: Marleruiters, RV. | G37: 7 | H37: 156 | I37: 0 | J37: 156 | K37: 4.5 | L37: 6 | M37: 24 | N37: 24 | R37: 0 | V37: 99 | Z37: 0 | AD37: 99 | BC37: 222 | BD37: 156 | BE37: =IF($O$4>0,(LARGE(($N37,$V37,$AD37,$AL37,$AT37,$BB37),1)),"0") -> 99 | BG37: 0 | BH37: 0 | BI37: 123 | BJ37: 156

Sheet L2
A1: Selectie uitslagen
C2: 1 | D2: =FLOOR((C2+3)/4,1) -> 1 | H2: 192 | I2: 190 | J2: =H2+I2 -> 382 | N2: 1 | P2: 193 | Q2: 193 | R2: =P2+Q2 -> 386 | V2: 2 | X2: 198 | Y2: 198 | Z2: =X2+Y2 -> 396 | AD2: 3 | AF2: 177 | AG2: 177 | AH2: =AF2+AG2 -> 354 | AL2: 4 | AN2: 178 | AO2: 178 | AP2: =AN2+AO2 -> 356 | AT2: 5 | AV2: 179 | AW2: 179 | AX2: =AV2+AW2 -> 358 | BB2: 6 | BC2: =N2+V2+AD2+AL2+AT2+BB2 -> 21 | BD2: =J2+R2+Z2+AH2+AP2+AX2 -> 2232 | BE2: =IF($O$4>0,(LARGE(($N2,$V2,$AD2,$AL2,$AT2,$BB2),1)),"0") -> 6 | BF2: =IF($O$4>0,(LARGE(($N2,$V2,$AD2,$AL2,$AT2,$BB2),2)),"0") -> 5 | BG2: 354 | BH2: 354 | BI2: =BC2-BE2-BF2 -> 10 | BJ2: =BD2-BG2-BH2 -> 1524
A3: Kring: | C3: =Instellingen!B3 -> Kring NVF | F3: Aantal afvaardiging Regio: | O3: 6 | BC3: Aantal wedstrijden: | BL3: =Instellingen!B6 -> 3
A4: Klasse: | C4: L2 | F4: Aantal afval resultaten: | O4: =Instellingen!B7 -> 1
A5: Cat.: | F5: Plaatsingspunten niet gestart: | O5: =Instellingen!B5 -> 99 | BC5: Aantal reserves: | BL5: 2
F6: Lokatie: | G6: =Instellingen!B36 -> Hattem | O6: =Instellingen!B37 -> Ermelo | W6: =Instellingen!B38 -> Nunspeet | AE6: =Instellingen!B39 -> 0 | AM6: =Instellingen!B40 -> 0 | AU6: =Instellingen!B41 -> 0 | BC6: Dressuur | BI6: Pnt. 60% regel | BL6: 180
F7: Datum: | G7: =Instellingen!C36 -> 06 jun 2022 | O7: =Instellingen!C37 -> 18 jun 2022 | W7: =Instellingen!C38 -> 02 jul 2022 | AE7: =Instellingen!C39 ->  | AM7: =Instellingen!C40 ->  | AU7: =Instellingen!C41 ->  | BC7: Tot. | BD7: Tot. | BE7: afval | BF7: afval | BG7: afval | BH7: afval | BI7: Beste | BJ7: Beste
A8: Pl. | B8: Comb.nr. | C8: Ruiter/amazone | D8: Paard/pony | E8: kl. | F8: vereniging | G8: Ring | H8: pnt.C | I8: pnt.H | J8: pnt.tot | K8: ex 1 | L8: ex 2 | M8: pl. | N8: pl.p. | O8: Ring | P8: pnt.C | Q8: pnt.H | R8: pnt.tot. | S8: ex 1 | T8: ex 2 | U8: pl. | V8: pl.p. | W8: Ring | X8: pnt.C | Y8: pnt. H | Z8: pnt.tot. | AA8: ex 1 | AB8: ex 2 | AC8: pl. | AD8: pl.p. | AE8: Ring | AF8: pnt.C | AG8: pnt.H | AH8: pnt.tot. | AI8: ex 1 | AJ8: ex 2 | AK8: pl. | AL8: pl.p. | AM8: Ring | AN8: pnt.C | AO8: pnt.H | AP8: pnt.tot. | AQ8: ex 1 | AR8: ex 2 | AS8: pl. | AT8: pl.p. | AU8: Ring | AV8: pnt.C | AW8: pnt.H | AX8: pnt.tot. | AY8: ex 1 | AZ8: ex 2 | BA8: pl. | BB8: pl.p. | BC8: pl.pnt | BD8: punten | BE8: pl.pnt | BF8: pl.pnt | BG8: punten | BH8: punten | BI8: pl.pnt | BJ8: punten | BK8: Afv. | BL8: Res. | BM8: Afv. Regio | BN8: opmerking
A9: 1 | B9: 950516NR | C9: Lindy Rook | D9: Nyatrichta | E9: L2 | F9: Noord Veluwe, RV. PSV | G9: 7 | H9: 212.5 | I9: 0 | J9: =H9+I9 -> 212.5 | K9: 7 | L9: 7.5 | M9: 1 | N9: 1 | O9: 5 | P9: 202 | Q9: 0 | R9: =P9+Q9 -> 202 | S9: 7 | T9: 7 | U9: 2 | V9: 2 | W9: 1 | X9: 213.5 | Z9: =X9+Y9 -> 213.5 | AA9: 7.5 | AB9: 7.5 | AC9: 4 | AD9: 4 | BC9: =N9+V9+AD9+AL9+AT9+BB9 -> 7 | BD9: =J9+R9+Z9+AH9+AP9+AX9 -> 628 | BE9: =IF($O$4>0,(LARGE(($N9,$V9,$AD9,$AL9,$AT9,$BB9),1)),"0") -> 4 | BG9: 213.5 | BH9: 0 | BI9: =BC9-BE9-BF9 -> 3 | BJ9: =BD9-BG9-BH9 -> 414.5 | BK9: 1 | BN9: Kringkampioen
A10: 2 | B10: 926386MH | C10: Patrieck Van Hoek | D10: Macy Js | E10: L2 | F10: Noord Veluwe, RV. PSV | G10: 7 | H10: 205.5 | I10: 0 | J10: 205.5 | K10: 6.5 | L10: 6.5 | M10: 2 | N10: 2 | O10: 5 | P10: 202 | Q10: 0 | R10: 202 | S10: 7 | T10: 7 | U10: 2 | V10: 2 | W10: 1 | X10: 213.5 | Z10: 213.5 | AA10: 7.5 | AB10: 8 | AC10: 3 | AD10: 3 | BC10: 7 | BD10: 621 | BE10: =IF($O$4>0,(LARGE(($N10,$V10,$AD10,$AL10,$AT10,$BB10),1)),"0") -> 3 | BG10: 213.5 | BH10: 0 | BI10: 4 | BJ10: 407.5 | BK10: 2
A11: 3 | B11: 909770LS | C11: Helga Schuurman | D11: Lamborghini Jb | E11: L2 | F11: Noord Veluwe, RV. PSV | G11: 7 | H11: 202 | I11: 0 | J11: 202 | K11: 7 | L11: 7 | M11: 3 | N11: 3 | O11: 5 | P11: 202.5 | Q11: 0 | R11: 202.5 | S11: 7 | T11: 7 | U11: 1 | V11: 1 | W11: 1 | X11: 195.5 | Z11: 195.5 | AA11: 7 | AB11: 7 | AC11: 7 | AD11: 7 | BC11: 11 | BD11: 600 | BE11: =IF($O$4>0,(LARGE(($N11,$V11,$AD11,$AL11,$AT11,$BB11),1)),"0") -> 7 | BG11: 195.5 | BH11: 0 | BI11: 4 | BJ11: 404.5 | BK11: 3
A12: 4 | B12: 950624NR | C12: Lindy Rook | D12: No Nonsense Vdz | E12: L2 | F12: Noord Veluwe, RV. PSV | G12: 7 | H12: 200.5 | I12: 0 | J12: 200.5 | K12: 6.5 | L12: 7 | M12: 4 | N12: 4 | O12: 5 | P12: 194 | Q12: 0 | R12: 194 | S12: 6.5 | T12: 6.5 | U12: 5 | V12: 5 | W12: 1 | X12: 218.5 | Z12: 218.5 | AA12: 7 | AB12: 8 | AC12: 1 | AD12: 1 | BC12: 10 | BD12: 613 | BE12: =IF($O$4>0,(LARGE(($N12,$V12,$AD12,$AL12,$AT12,$BB12),1)),"0") -> 5 | BG12: 194 | BH12: 0 | BI12: 5 | BJ12: 419 | BK12: 4
A13: 5 | B13: 955068NS | C13: Romy Schaftenaar | D13: Nobility | E13: L2 | F13: Schaapskooiruiters, RV. | J13: 0 | N13: 99 | O13: 5 | P13: 198.5 | Q13: 0 | R13: 198.5 | S13: 7 | T13: 7 | U13: 4 | V13: 4 | W13: 1 | X13: 215 | Z13: 215 | AA13: 7 | AB13: 8 | AC13: 2 | AD13: 2 | BC13: 105 | BD13: 413.5 | BE13: =IF($O$4>0,(LARGE(($N13,$V13,$AD13,$AL13,$AT13,$BB13),1)),"0") -> 99 | BG13: 0 | BH13: 0 | BI13: 6 | BJ13: 413.5 | BK13: 5
A14: 6 | B14: 888687KH | C14: Angela Hooghordel | D14: Kryptonite | E14: L2 | F14: Nunspeetse Ruiterclub, RV. | G14: 7 | H14: 191.5 | I14: 0 | J14: 191.5 | K14: 6.5 | L14: 6.5 | M14: 8 | N14: 8 | O14: 5 | P14: 191 | Q14: 0 | R14: 191 | S14: 6.5 | T14: 6.5 | U14: 7 | V14: 7 | W14: 1 | X14: 199 | Z14: 199 | AA14: 6.5 | AB14: 7 | AC14: 5 | AD14: 5 | BC14: 20 | BD14: 581.5 | BE14: =IF($O$4>0,(LARGE(($N14,$V14,$AD14,$AL14,$AT14,$BB14),1)),"0") -> 8 | BG14: 191.5 | BH14: 0 | BI14: 12 | BJ14: 390 | BK14: 6
A15: 7 | B15: 919958MG | C15: Rosan Van de Goor | D15: Massaro | E15: L2 | F15: Heuvelruiters, RV. | G15: 7 | H15: 189.5 | I15: 0 | J15: 189.5 | K15: 5 | L15: 6 | M15: 10 | N15: 10 | O15: 5 | P15: 191.5 | Q15: 0 | R15: 191.5 | S15: 6.5 | T15: 6.5 | U15: 6 | V15: 6 | W15: 1 | X15: 198 | Z15: 198 | AA15: 6.5 | AB15: 7 | AC15: 6 | AD15: 6 | BC15: 22 | BD15: 579 | BE15: =IF($O$4>0,(LARGE(($N15,$V15,$AD15,$AL15,$AT15,$BB15),1)),"0") -> 10 | BG15: 189.5 | BH15: 0 | BI15: 12 | BJ15: 389.5 | BL15: 1
A16: 8 | B16: 926400AR | C16: Maud Rorije | D16: Alert | E16: L2 | F16: Horsthoekruiters, RV. | G16: 7 | H16: 193 | I16: 0 | J16: 193 | K16: 6.5 | L16: 7 | M16: 6 | N16: 6 | O16: 5 | P16: 182 | Q16: 0 | R16: 182 | S16: 6 | T16: 6.5 | U16: 10 | V16: 10 | Z16: 0 | AD16: 99 | BC16: 115 | BD16: 375 | BE16: =IF($O$4>0,(LARGE(($N16,$V16,$AD16,$AL16,$AT16,$BB16),1)),"0") -> 99 | BG16: 0 | BH16: 0 | BI16: 16 | BJ16: 375 | BL16: 2
A17: 9 | B17: 932144MK | C17: Anne Klein | D17: Merlin | E17: L2 | F17: Heuvelruiters, RV. | G17: 7 | H17: 178.5 | I17: 0 | J17: 178.5 | K17: 6 | L17: 6.5 | M17: 13 | N17: 13 | O17: 5 | P17: 182.5 | Q17: 0 | R17: 182.5 | S17: 6 | T17: 6.5 | U17: 9 | V17: 9 | W17: 1 | X17: 193 | Z17: 193 | AA17: 6 | AB17: 7 | AC17: 8 | AD17: 8 | BC17: 30 | BD17: 554 | BE17: =IF($O$4>0,(LARGE(($N17,$V17,$AD17,$AL17,$AT17,$BB17),1)),"0") -> 13 | BG17: 178.5 | BH17: 0 | BI17: 17 | BJ17: 375.5
A18: 10 | B18: 949054KG | C18: Michelle Goedkoop | D18: Kaspar | E18: L2 | F18: Nunspeetse Ruiterclub, RV. | G18: 7 | H18: 188.5 | I18: 0 | J18: 188.5 | K18: 6 | L18: 6.5 | M18: 11 | N18: 11 | O18: 5 | P18: 191 | Q18: 0 | R18: 191 | S18: 6 | T18: 6.5 | U18: 8 | V18: 8 | W18: 1 | X18: 191.5 | Z18: 191.5 | AA18: 5 | AB18: 6 | AC18: 10 | AD18: 10 | BC18: 29 | BD18: 571 | BE18: =IF($O$4>0,(LARGE(($N18,$V18,$AD18,$AL18,$AT18,$BB18),1)),"0") -> 11 | BG18: 188.5 | BH18: 0 | BI18: 18 | BJ18: 382.5
A19: 11 | B19: 924876QE | C19: Ronja Van Eek | D19: Queverdale Du Fally | E19: L2 | F19: WWNA, RV. | G19: 7 | H19: 191 | I19: 0 | J19: 191 | K19: 6.5 | L19: 7 | M19: 9 | N19: 9 | O19: 5 | P19: 176.5 | Q19: 0 | R19: 176.5 | S19: 6 | T19: 6 | U19: 13 | V19: 13 | W19: 1 | X19: 190 | Z19: 190 | AA19: 6.5 | AB19: 7 | AC19: 11 | AD19: 11 | BC19: 33 | BD19: 557.5 | BE19: =IF($O$4>0,(LARGE(($N19,$V19,$AD19,$AL19,$AT19,$BB19),1)),"0") -> 13 | BG19: 176.5 | BH19: 0 | BI19: 20 | BJ19: 381
A20: 12 | B20: 822777HN | C20: Aaltje Neijmeijer | D20: Highlight m | E20: L2 | F20: Nunspeetse Ruiterclub, RV. | G20: 7 | H20: 186 | I20: 0 | J20: 186 | K20: 5 | L20: 6.5 | M20: 12 | N20: 12 | O20: 5 | P20: 180 | Q20: 0 | R20: 180 | S20: 6.5 | T20: 6.5 | U20: 12 | V20: 12 | Z20: 0 | AD20: 99 | BC20: 123 | BD20: 366 | BE20: =IF($O$4>0,(LARGE(($N20,$V20,$AD20,$AL20,$AT20,$BB20),1)),"0") -> 99 | BG20: 0 | BH20: 0 | BI20: 24 | BJ20: 366
A21: 13 | B21: 919175LH | C21: Lisa El Hayek | D21: La Schufro | E21: L2 | F21: Nunspeetse Ruiterclub, RV. | G21: 7 | H21: 178 | I21: 0 | J21: 178 | K21: 6.5 | L21: 5 | M21: 14 | N21: 14 | O21: 5 | P21: 181 | Q21: 0 | R21: 181 | S21: 6 | T21: 6 | U21: 11 | V21: 11 | W21: 1 | X21: 189 | Z21: 189 | AA21: 5 | AB21: 7 | AC21: 14 | AD21: 14 | BC21: 39 | BD21: 548 | BE21: =IF($O$4>0,(LARGE(($N21,$V21,$AD21,$AL21,$AT21,$BB21),1)),"0") -> 14 | BG21: 178 | BH21: 0 | BI21: 25 | BJ21: 370
A22: 14 | B22: 946899NH | C22: Alexandra Hayes | D22: Noblesse Fortuna | E22: L2 | F22: Oost-Veluwse R.J.V., RV. | G22: 7 | H22: 177.5 | I22: 0 | J22: 177.5 | K22: 5 | L22: 5 | M22: 15 | N22: 15 | O22: 5 | P22: 175.5 | Q22: 0 | R22: 175.5 | S22: 6 | T22: 6 | U22: 14 | V22: 14 | W22: 1 | X22: 189 | Z22: 189 | AA22: 6 | AB22: 7 | AC22: 13 | AD22: 13 | BC22: 42 | BD22: 542 | BE22: =IF($O$4>0,(LARGE(($N22,$V22,$AD22,$AL22,$AT22,$BB22),1)),"0") -> 15 | BG22: 177.5 | BH22: 0 | BI22: 27 | BJ22: 364.5
A23: 15 | B23: 932416MB | C23: Marleen Bronsink | D23: Dansa's Modansa | E23: L2 | F23: Heuvelruiters, RV. | G23: 7 | H23: 197 | I23: 0 | J23: 197 | K23: 7 | L23: 7 | M23: 5 | N23: 5 | R23: 0 | V23: 99 | Z23: 0 | AD23: 99 | BC23: 203 | BD23: 197 | BE23: =IF($O$4>0,(LARGE(($N23,$V23,$AD23,$AL23,$AT23,$BB23),1)),"0") -> 99 | BG23: 0 | BH23: 0 | BI23: 104 | BJ23: 197
A24: 16 | B24: 901548JV | C24: Benthe Vermeulen | D24: Jorien | E24: L2 | F24: Schaapskooiruiters, RV. | G24: 7 | H24: 193 | I24: 0 | J24: 193 | K24: 6 | L24: 7 | M24: 7 | N24: 7 | R24: 0 | V24: 99 | Z24: 0 | AD24: 99 | BC24: 205 | BD24: 193 | BE24: =IF($O$4>0,(LARGE(($N24,$V24,$AD24,$AL24,$AT24,$BB24),1)),"0") -> 99 | BG24: 0 | BH24: 0 | BI24: 106 | BJ24: 193
A25: 17 | B25: 914192ZB | C25: Nicole Brummel | D25: Zavanna Stella Fan Aurum | F25: Epe, RV | J25: 0 | N25: 99 | R25: 0 | V25: 99 | W25: 1 | X25: 192.5 | Z25: 192.5 | AA25: 7 | AB25: 7 | AC25: 9 | AD25: 9 | BC25: 207 | BD25: 192.5 | BE25: =IF($O$4>0,(LARGE(($N25,$V25,$AD25,$AL25,$AT25,$BB25),1)),"0") -> 99 | BG25: 0 | BH25: 0 | BI25: 108 | BJ25: 192.5
A26: 18 | B26: 898035KP | C26: Bertil Platte | D26: Kingsman J | F26: Nunspeetse Ruiterclub, RV. | J26: 0 | N26: 99 | R26: 0 | V26: 99 | W26: 1 | X26: 190 | Z26: 190 | AA26: 6.5 | AB26: 7 | AC26: 11 | AD26: 11 | BC26: 209 | BD26: 190 | BE26: =IF($O$4>0,(LARGE(($N26,$V26,$AD26,$AL26,$AT26,$BB26),1)),"0") -> 99 | BG26: 0 | BH26: 0 | BI26: 110 | BJ26: 190
A27: 19 | B27: 915578OL | C27: Ilona van Leussen | D27: obelisque van de vlasgaardhoeve | E27: L2 | F27: Schaapskooiruiters, RV. | G27: 7 | H27: 172.5 | I27: 0 | J27: 172.5 | K27: 5 | L27: 5 | M27: 16 | N27: 16 | R27: 0 | V27: 99 | Z27: 0 | AD27: 99 | BC27: 214 | BD27: 172.5 | BE27: =IF($O$4>0,(LARGE(($N27,$V27,$AD27,$AL27,$AT27,$BB27),1)),"0") -> 99 | BG27: 0 | BH27: 0 | BI27: 115 | BJ27: 172.5
A28: 20 | B28: 953126PR | C28: Lindy Rook | D28: Pummel | E28: L2 | F28: Noord Veluwe, RV. PSV | G28: 7 | H28: 172 | I28: 0 | J28: 172 | K28: 5 | L28: 5 | M28: 17 | N28: 17 | R28: 0 | V28: 99 | Z28: 0 | AD28: 99 | BC28: 215 | BD28: 172 | BE28: =IF($O$4>0,(LARGE(($N28,$V28,$AD28,$AL28,$AT28,$BB28),1)),"0") -> 99 | BG28: 0 | BH28: 0 | BI28: 116 | BJ28: 172
A29: 21 | B29: 732804EI | C29: Lisanne Van Ittersum | D29: Ezra Joline | E29: L2 | F29: Marleruiters, RV. | G29: 7 | H29: 0 | I29: 0 | J29: 0 | M29: 18 | N29: 90 | R29: 0 | V29: 99 | Z29: 0 | AD29: 99 | BC29: 288 | BD29: 0 | BE29: =IF($O$4>0,(LARGE(($N29,$V29,$AD29,$AL29,$AT29,$BB29),1)),"0") -> 99 | BG29: 0 | BH29: 0 | BI29: 189 | BJ29: 0

Sheet L1 - L2 (hidden)
A1: Selectie uitslagen
C2: 1 | D2: =FLOOR((C2+3)/4,1) -> 1 | G2: 192 | H2: 192 | I2: 190 | J2: =H2+I2 -> 382 | N2: 1 | O2: 193 | P2: 193 | Q2: 193 | R2: =P2+Q2 -> 386 | V2: 2 | W2: 198 | X2: 198 | Y2: 198 | Z2: =X2+Y2 -> 396 | AD2: 3 | AE2: 177 | AF2: 177 | AG2: 177 | AH2: =AF2+AG2 -> 354 | AL2: 4 | AM2: 178 | AN2: 178 | AO2: 178 | AP2: =AN2+AO2 -> 356 | AT2: 5 | AU2: 179 | AV2: 179 | AW2: 179 | AX2: =AV2+AW2 -> 358 | BB2: 6 | BC2: =N2+V2+AD2+AL2+AT2+BB2 -> 21 | BD2: =J2+R2+Z2+AH2+AP2+AX2 -> 2232 | BE2: =IF($O$4>0,(LARGE(($N2,$V2,$AD2,$AL2,$AT2,$BB2),1)),"0") -> 6 | BF2: =IF($O$4>0,(LARGE(($N2,$V2,$AD2,$AL2,$AT2,$BB2),2)),"0") -> 5 | BG2: 354 | BH2: 354 | BI2: =BC2-BE2-BF2 -> 10 | BJ2: =BD2-BG2-BH2 -> 1524
A3: Kring: | C3: =Instellingen!B3 -> Kring NVF | BC3: Aantal wedstrijden: | BL3: =Instellingen!B6 -> 3
A4: Klasse: | C4: L1 - L2 | F4: Aantal afval resultaten: | O4: =Instellingen!B7 -> 1
A5: Cat.: | F5: Plaatsingspunten niet gestart: | O5: =Instellingen!B5 -> 99
F6: Lokatie: | G6: =Instellingen!B36 -> Hattem | O6: =Instellingen!B37 -> Ermelo | W6: =Instellingen!B38 -> Nunspeet | AE6: =Instellingen!B39 -> 0 | AM6: =Instellingen!B40 -> 0 | AU6: =Instellingen!B41 -> 0 | BC6: Dressuur
F7: Datum: | G7: =Instellingen!C36 -> 06 jun 2022 | O7: =Instellingen!C37 -> 18 jun 2022 | W7: =Instellingen!C38 -> 02 jul 2022 | AE7: =Instellingen!C39 ->  | AM7: =Instellingen!C40 ->  | AU7: =Instellingen!C41 ->  | BC7: Tot. | BD7: Tot. | BE7: afval | BF7: afval | BG7: afval | BH7: afval | BI7: Beste | BJ7: Beste
A8: Pl. | B8: Comb.nr. | C8: Ruiter/amazone | D8: Paard/pony | E8: kl. | F8: vereniging | G8: Ring | H8: pnt.C | I8: pnt.H | J8: pnt.tot | K8: ex 1 | L8: ex 2 | M8: pl. | N8: pl.p. | O8: Ring | P8: pnt.C | Q8: pnt.H | R8: pnt.tot. | S8: ex 1 | T8: ex 2 | U8: pl. | V8: pl.p. | W8: Ring | X8: pnt.C | Y8: pnt. H | Z8: pnt.tot. | AA8: ex 1 | AB8: ex 2 | AC8: pl. | AD8: pl.p. | AE8: Ring | AF8: pnt.C | AG8: pnt.H | AH8: pnt.tot. | AI8: ex 1 | AJ8: ex 2 | AK8: pl. | AL8: pl.p. | AM8: Ring | AN8: pnt.C | AO8: pnt.H | AP8: pnt.tot. | AQ8: ex 1 | AR8: ex 2 | AS8: pl. | AT8: pl.p. | AU8: Ring | AV8: pnt.C | AW8: pnt.H | AX8: pnt.tot. | AY8: ex 1 | AZ8: ex 2 | BA8: pl. | BB8: pl.p. | BC8: pl.pnt | BD8: punten | BE8: pl.pnt | BF8: pl.pnt | BG8: punten | BH8: punten | BI8: pl.pnt | BJ8: punten | BK8: Afv. | BL8: Res. | BN8: opmerking

Sheet M1
A1: Selectie uitslagen
C2: 1 | D2: =FLOOR((C2+3)/4,1) -> 1 | H2: 192 | I2: 190 | J2: =H2+I2 -> 382 | N2: 1 | P2: 193 | Q2: 193 | R2: =P2+Q2 -> 386 | V2: 2 | X2: 198 | Y2: 198 | Z2: =X2+Y2 -> 396 | AD2: 3 | AF2: 177 | AG2: 177 | AH2: =AF2+AG2 -> 354 | AL2: 4 | AN2: 178 | AO2: 178 | AP2: =AN2+AO2 -> 356 | AT2: 5 | AV2: 179 | AW2: 179 | AX2: =AV2+AW2 -> 358 | BB2: 6 | BC2: =N2+V2+AD2+AL2+AT2+BB2 -> 21 | BD2: =J2+R2+Z2+AH2+AP2+AX2 -> 2232 | BE2: =IF($O$4>0,(LARGE(($N2,$V2,$AD2,$AL2,$AT2,$BB2),1)),"0") -> 6 | BF2: =IF($O$4>0,(LARGE(($N2,$V2,$AD2,$AL2,$AT2,$BB2),2)),"0") -> 5 | BG2: 354 | BH2: 354 | BI2: =BC2-BE2-BF2 -> 10 | BJ2: =BD2-BG2-BH2 -> 1524
A3: Kring: | C3: =Instellingen!B3 -> Kring NVF | F3: Aantal afvaardiging Regio: | O3: 7 | BC3: Aantal wedstrijden: | BL3: =Instellingen!B6 -> 3
A4: Klasse: | C4: M1 | F4: Aantal afval resultaten: | O4: =Instellingen!B7 -> 1
A5: Cat.: | F5: Plaatsingspunten niet gestart: | O5: =Instellingen!B5 -> 99 | BC5: Aantal reserves: | BL5: 2
F6: Lokatie: | G6: =Instellingen!B36 -> Hattem | O6: =Instellingen!B37 -> Ermelo | W6: =Instellingen!B38 -> Nunspeet | AE6: =Instellingen!B39 -> 0 | AM6: =Instellingen!B40 -> 0 | AU6: =Instellingen!B41 -> 0 | BC6: Dressuur | BI6: Pnt. 60% regel | BL6: 180
F7: Datum: | G7: =Instellingen!C36 -> 06 jun 2022 | O7: =Instellingen!C37 -> 18 jun 2022 | W7: =Instellingen!C38 -> 02 jul 2022 | AE7: =Instellingen!C39 ->  | AM7: =Instellingen!C40 ->  | AU7: =Instellingen!C41 ->  | BC7: Tot. | BD7: Tot. | BE7: afval | BF7: afval | BG7: afval | BH7: afval | BI7: Beste | BJ7: Beste
A8: Pl. | B8: Comb.nr. | C8: Ruiter/amazone | D8: Paard/pony | E8: kl. | F8: vereniging | G8: Ring | H8: pnt.C | I8: pnt.H | J8: pnt.tot | K8: ex 1 | L8: ex 2 | M8: pl. | N8: pl.p. | O8: Ring | P8: pnt.C | Q8: pnt.H | R8: pnt.tot. | S8: ex 1 | T8: ex 2 | U8: pl. | V8: pl.p. | W8: Ring | X8: pnt.C | Y8: pnt. H | Z8: pnt.tot. | AA8: ex 1 | AB8: ex 2 | AC8: pl. | AD8: pl.p. | AE8: Ring | AF8: pnt.C | AG8: pnt.H | AH8: pnt.tot. | AI8: ex 1 | AJ8: ex 2 | AK8: pl. | AL8: pl.p. | AM8: Ring | AN8: pnt.C | AO8: pnt.H | AP8: pnt.tot. | AQ8: ex 1 | AR8: ex 2 | AS8: pl. | AT8: pl.p. | AU8: Ring | AV8: pnt.C | AW8: pnt.H | AX8: pnt.tot. | AY8: ex 1 | AZ8: ex 2 | BA8: pl. | BB8: pl.p. | BC8: pl.pnt | BD8: punten | BE8: pl.pnt | BF8: pl.pnt | BG8: punten | BH8: punten | BI8: pl.pnt | BJ8: punten | BK8: Afv. | BL8: Res. | BM8: Afv. Regio | BN8: opmerking
A9: 1 | B9: 897187LG | C9: Rosan Van de Goor | D9: Lavendel | E9: M1 | F9: Heuvelruiters, RV. | G9: 3 | H9: 201.5 | I9: 0 | J9: =H9+I9 -> 201.5 | K9: 7.5 | L9: 6 | M9: 5 | N9: 5 | O9: 5 | P9: 212 | Q9: 0 | R9: =P9+Q9 -> 212 | S9: 7.5 | T9: 7.5 | U9: 1 | V9: 1 | W9: 3 | X9: 215.5 | Z9: =X9+Y9 -> 215.5 | AA9: 7.5 | AB9: 8 | AC9: 1 | AD9: 1 | BC9: =N9+V9+AD9+AL9+AT9+BB9 -> 7 | BD9: =J9+R9+Z9+AH9+AP9+AX9 -> 629 | BE9: =IF($O$4>0,(LARGE(($N9,$V9,$AD9,$AL9,$AT9,$BB9),1)),"0") -> 5 | BG9: 201.5 | BH9: 0 | BI9: =BC9-BE9-BF9 -> 2 | BJ9: =BD9-BG9-BH9 -> 427.5 | BK9: 1 | BN9: Kringkampioen
A10: 2 | B10: 904458KB | C10: Indy van de Beeten | D10: King Kayrac | E10: M1 | F10: Randmeerruiters, RV. De | G10: 3 | H10: 215 | I10: 0 | J10: 215 | K10: 8 | L10: 8 | M10: 1 | N10: 1 | O10: 5 | P10: 211 | Q10: 0 | R10: 211 | S10: 7 | T10: 7.5 | U10: 2 | V10: 2 | W10: 3 | X10: 189.5 | Z10: 189.5 | AA10: 7 | AB10: 7 | AC10: 5 | AD10: 5 | BC10: 8 | BD10: 615.5 | BE10: =IF($O$4>0,(LARGE(($N10,$V10,$AD10,$AL10,$AT10,$BB10),1)),"0") -> 5 | BG10: 189.5 | BH10: 0 | BI10: 3 | BJ10: 426 | BK10: 2
A11: 3 | B11: 905423KK | C11: Femke Groeneveld - Van de Kolk | D11: King Of Fira | E11: M1 | F11: Randmeerruiters, RV. De | G11: 3 | H11: 208 | I11: 0 | J11: 208 | K11: 7.5 | L11: 7.5 | M11: 3 | N11: 3 | O11: 5 | P11: 203.5 | Q11: 0 | R11: 203.5 | S11: 6 | T11: 6.5 | U11: 6 | V11: 6 | W11: 3 | X11: 193 | Z11: 193 | AA11: 6.5 | AB11: 7 | AC11: 2 | AD11: 2 | BC11: 11 | BD11: 604.5 | BE11: =IF($O$4>0,(LARGE(($N11,$V11,$AD11,$AL11,$AT11,$BB11),1)),"0") -> 6 | BG11: 203.5 | BH11: 0 | BI11: 5 | BJ11: 401 | BK11: 3
A12: 4 | B12: 884764KG | C12: Anna Te Grotenhuis | D12: King Arthur | E12: M1 | F12: Heuvelruiters, RV. | G12: 3 | H12: 210 | I12: 0 | J12: 210 | K12: 7 | L12: 7.5 | M12: 2 | N12: 2 | O12: 5 | P12: 210 | Q12: 0 | R12: 210 | S12: 7 | T12: 7 | U12: 3 | V12: 3 | Z12: 0 | AD12: 99 | BC12: 104 | BD12: 420 | BE12: =IF($O$4>0,(LARGE(($N12,$V12,$AD12,$AL12,$AT12,$BB12),1)),"0") -> 99 | BG12: 0 | BH12: 0 | BI12: 5 | BJ12: 420 | BK12: 4
A13: 5 | B13: 927477JG | C13: Iris Groeneveld | D13: Just-In Case | E13: M1 | F13: Randmeerruiters, RV. De | G13: 3 | H13: 208 | I13: 0 | J13: 208 | K13: 7 | L13: 7.5 | M13: 4 | N13: 4 | O13: 5 | P13: 205 | Q13: 0 | R13: 205 | S13: 6.5 | T13: 7 | U13: 5 | V13: 5 | W13: 3 | X13: 192.5 | Z13: 192.5 | AA13: 7 | AB13: 7 | AC13: 3 | AD13: 3 | BC13: 12 | BD13: 605.5 | BE13: =IF($O$4>0,(LARGE(($N13,$V13,$AD13,$AL13,$AT13,$BB13),1)),"0") -> 5 | BG13: 205 | BH13: 0 | BI13: 7 | BJ13: 400.5 | BK13: 5
A14: 6 | B14: 910057GK | C14: Pascalle De Klerk | D14: Gucci | E14: M1 | F14: Cannenburgh, RV. HV. De | G14: 3 | H14: 196.5 | I14: 0 | J14: 196.5 | K14: 6.5 | L14: 7 | M14: 7 | N14: 7 | R14: 0 | V14: 99 | W14: 3 | X14: 183.5 | Z14: 183.5 | AA14: 6 | AB14: 6.5 | AC14: 6 | AD14: 6 | BC14: 112 | BD14: 380 | BE14: =IF($O$4>0,(LARGE(($N14,$V14,$AD14,$AL14,$AT14,$BB14),1)),"0") -> 99 | BG14: 0 | BH14: 0 | BI14: 13 | BJ14: 380 | BK14: 6
A15: 7 | B15: 936196ME | C15: Daphne Enter | D15: Most Wanted | E15: M1 | F15: Heuvelruiters, RV. | G15: 3 | H15: 198.5 | I15: 0 | J15: 198.5 | K15: 6.5 | L15: 7 | M15: 6 | N15: 6 | O15: 5 | P15: 201 | Q15: 0 | R15: 201 | S15: 6.5 | T15: 7 | U15: 7 | V15: 7 | W15: 3 | X15: 173 | Z15: 173 | AA15: 5 | AB15: 6 | AC15: 11 | AD15: 11 | BC15: 24 | BD15: 572.5 | BE15: =IF($O$4>0,(LARGE(($N15,$V15,$AD15,$AL15,$AT15,$BB15),1)),"0") -> 11 | BG15: 173 | BH15: 0 | BI15: 13 | BJ15: 399.5 | BK15: 7
A16: 8 | B16: 824172DM | C16: Jeanne Meijer | D16: Double Coloured Cato | E16: M1 | F16: Heuvelruiters, RV. | G16: 3 | H16: 182.5 | I16: 0 | J16: 182.5 | K16: 6 | L16: 6.5 | M16: 10 | N16: 10 | O16: 5 | P16: 189.5 | Q16: 0 | R16: 189.5 | S16: 6 | T16: 6.5 | U16: 10 | V16: 10 | W16: 3 | X16: 191.5 | Z16: 191.5 | AA16: 6.5 | AB16: 6.5 | AC16: 4 | AD16: 4 | BC16: 24 | BD16: 563.5 | BE16: =IF($O$4>0,(LARGE(($N16,$V16,$AD16,$AL16,$AT16,$BB16),1)),"0") -> 10 | BG16: 182.5 | BH16: 0 | BI16: 14 | BJ16: 381 | BL16: 1
A17: 9 | B17: 863302JV | C17: Monique Vrolijken | D17: Jeason | E17: M1 | F17: Heuvelruiters, RV. | J17: 0 | N17: 99 | O17: 5 | P17: 209 | Q17: 0 | R17: 209 | S17: 7 | T17: 7 | U17: 4 | V17: 4 | W17: 3 | X17: 177 | Z17: 177 | AA17: 6 | AB17: 6.5 | AC17: 10 | AD17: 10 | BC17: 113 | BD17: 386 | BE17: =IF($O$4>0,(LARGE(($N17,$V17,$AD17,$AL17,$AT17,$BB17),1)),"0") -> 99 | BG17: 0 | BH17: 0 | BI17: 14 | BJ17: 386 | BL17: 2
A18: 10 | B18: 924177TB | C18: Nicole Brummel | D18: Tsjikke van West-Raven | E18: M1 | F18: Epe, RV. HV. | G18: 3 | H18: 195 | I18: 0 | J18: 195 | K18: 7 | L18: 6.5 | M18: 8 | N18: 8 | O18: 5 | P18: 197 | Q18: 0 | R18: 197 | S18: 6 | T18: 6.5 | U18: 8 | V18: 8 | W18: 3 | X18: 181 | Z18: 181 | AA18: 6 | AB18: 7 | AC18: 8 | AD18: 8 | BC18: 24 | BD18: 573 | BE18: =IF($O$4>0,(LARGE(($N18,$V18,$AD18,$AL18,$AT18,$BB18),1)),"0") -> 8 | BG18: 181 | BH18: 0 | BI18: 16 | BJ18: 392
A19: 11 | B19: 924475LK | C19: Annemieke Kool | D19: Lincoln | E19: M1 | F19: Heuvelruiters, RV. | G19: 3 | H19: 186.5 | I19: 0 | J19: 186.5 | K19: 6 | L19: 6 | M19: 9 | N19: 9 | R19: 0 | V19: 99 | W19: 3 | X19: 180.5 | Z19: 180.5 | AA19: 6 | AB19: 6.5 | AC19: 9 | AD19: 9 | BC19: 117 | BD19: 367 | BE19: =IF($O$4>0,(LARGE(($N19,$V19,$AD19,$AL19,$AT19,$BB19),1)),"0") -> 99 | BG19: 0 | BH19: 0 | BI19: 18 | BJ19: 367
A20: 12 | B20: 882136WB | C20: Carola Klaassen | D20: Wiltink's Laurus Nobilis | E20: M1 | F20: Nunspeetse Ruiterclub, RV. | G20: 3 | H20: 172 | I20: 0 | J20: 172 | K20: 6 | L20: 6 | M20: 12 | N20: 12 | O20: 5 | P20: 181.5 | Q20: 0 | R20: 181.5 | S20: 6 | T20: 6 | U20: 13 | V20: 13 | W20: 3 | X20: 183 | Z20: 183 | AA20: 6 | AB20: 6.5 | AC20: 7 | AD20: 7 | BC20: 32 | BD20: 536.5 | BE20: =IF($O$4>0,(LARGE(($N20,$V20,$AD20,$AL20,$AT20,$BB20),1)),"0") -> 13 | BG20: 181.5 | BH20: 0 | BI20: 19 | BJ20: 355
A21: 13 | B21: 834285JD | C21: Yvonne Dreierink | D21: Jibaro | E21: M1 | F21: Oost-Veluwse R.J.V., RV. | G21: 3 | H21: 160.5 | I21: 0 | J21: 160.5 | K21: 6 | L21: 6 | M21: 15 | N21: 15 | O21: 5 | P21: 172 | Q21: 0 | R21: 172 | S21: 6 | T21: 6 | U21: 14 | V21: 14 | W21: 3 | X21: 155 | Z21: 155 | AA21: 5 | AB21: 6 | AC21: 12 | AD21: 12 | BC21: 41 | BD21: 487.5 | BE21: =IF($O$4>0,(LARGE(($N21,$V21,$AD21,$AL21,$AT21,$BB21),1)),"0") -> 15 | BG21: 160.5 | BH21: 0 | BI21: 26 | BJ21: 327
A22: 14 | B22: 950201DB | C22: Simone Bos | D22: Damaso de Jeu KH | E22: M1 | F22: Koopman Horses | J22: 0 | N22: 99 | O22: 5 | P22: 195 | Q22: 0 | R22: 195 | S22: 6 | T22: 6.5 | U22: 9 | V22: 9 | Z22: 0 | AD22: 99 | BC22: 207 | BD22: 195 | BE22: =IF($O$4>0,(LARGE(($N22,$V22,$AD22,$AL22,$AT22,$BB22),1)),"0") -> 99 | BG22: 0 | BH22: 0 | BI22: 108 | BJ22: 195
A23: 15 | B23: 873560JS | C23: Karen Schutte | D23: June | E23: M1 | F23: Ruiter Club Riant, RV. | J23: 0 | N23: 99 | O23: 5 | P23: 189.5 | Q23: 0 | R23: 189.5 | S23: 6 | T23: 6.5 | U23: 10 | V23: 10 | Z23: 0 | AD23: 99 | BC23: 208 | BD23: 189.5 | BE23: =IF($O$4>0,(LARGE(($N23,$V23,$AD23,$AL23,$AT23,$BB23),1)),"0") -> 99 | BG23: 0 | BH23: 0 | BI23: 109 | BJ23: 189.5
A24: 16 | B24: 885041JN | C24: Jacqueline Niers | D24: Janita | E24: M1 | F24: Nunspeetse Ruiterclub, RV. | G24: 3 | H24: 174.5 | I24: 0 | J24: 174.5 | K24: 5 | L24: 6 | M24: 11 | N24: 11 | R24: 0 | V24: 99 | Z24: 0 | AD24: 99 | BC24: 209 | BD24: 174.5 | BE24: =IF($O$4>0,(LARGE(($N24,$V24,$AD24,$AL24,$AT24,$BB24),1)),"0") -> 99 | BG24: 0 | BH24: 0 | BI24: 110 | BJ24: 174.5
A25: 17 | B25: 908083KL | C25: Linda Koopman - Lammers | D25: Kaunrebi | E25: M1 | F25: Koopman Horses | J25: 0 | N25: 99 | O25: 5 | P25: 187 | Q25: 0 | R25: 187 | S25: 5 | T25: 6.5 | U25: 12 | V25: 12 | Z25: 0 | AD25: 99 | BC25: 210 | BD25: 187 | BE25: =IF($O$4>0,(LARGE(($N25,$V25,$AD25,$AL25,$AT25,$BB25),1)),"0") -> 99 | BG25: 0 | BH25: 0 | BI25: 111 | BJ25: 187
A26: 18 | B26: 850521WB | C26: Jolita Bekhof | D26: Wies | E26: M1 | F26: Heuvelruiters, RV. | G26: 3 | H26: 165 | I26: 0 | J26: 165 | K26: 6 | L26: 6 | M26: 13 | N26: 13 | R26: 0 | V26: 99 | Z26: 0 | AD26: 99 | BC26: 211 | BD26: 165 | BE26: =IF($O$4>0,(LARGE(($N26,$V26,$AD26,$AL26,$AT26,$BB26),1)),"0") -> 99 | BG26: 0 | BH26: 0 | BI26: 112 | BJ26: 165
A27: 19 | B27: 802604DO | C27: Ingrid van Oppen | D27: deja vu vdz | E27: M1 | F27: Noord Veluwe, RV. PSV | G27: 3 | H27: 162.5 | I27: 0 | J27: 162.5 | K27: 5 | L27: 6 | M27: 14 | N27: 14 | R27: 0 | V27: 99 | Z27: 0 | AD27: 99 | BC27: 212 | BD27: 162.5 | BE27: =IF($O$4>0,(LARGE(($N27,$V27,$AD27,$AL27,$AT27,$BB27),1)),"0") -> 99 | BG27: 0 | BH27: 0 | BI27: 113 | BJ27: 162.5

Sheet M2
A1: Selectie uitslagen
C2: 1 | D2: =FLOOR((C2+3)/4,1) -> 1 | H2: 192 | I2: 190 | J2: =H2+I2 -> 382 | N2: 1 | P2: 193 | Q2: 193 | R2: =P2+Q2 -> 386 | V2: 2 | X2: 198 | Y2: 198 | Z2: =X2+Y2 -> 396 | AD2: 3 | AF2: 177 | AG2: 177 | AH2: =AF2+AG2 -> 354 | AL2: 4 | AN2: 178 | AO2: 178 | AP2: =AN2+AO2 -> 356 | AT2: 5 | AV2: 179 | AW2: 179 | AX2: =AV2+AW2 -> 358 | BB2: 6 | BC2: =N2+V2+AD2+AL2+AT2+BB2 -> 21 | BD2: =J2+R2+Z2+AH2+AP2+AX2 -> 2232 | BE2: =IF($O$4>0,(LARGE(($N2,$V2,$AD2,$AL2,$AT2,$BB2),1)),"0") -> 6 | BF2: =IF($O$4>0,(LARGE(($N2,$V2,$AD2,$AL2,$AT2,$BB2),2)),"0") -> 5 | BG2: 354 | BH2: 354 | BI2: =BC2-BE2-BF2 -> 10 | BJ2: =BD2-BG2-BH2 -> 1524
A3: Kring: | C3: =Instellingen!B3 -> Kring NVF | F3: Aantal afvaardiging Regio: | O3: 8 | BC3: Aantal wedstrijden: | BL3: =Instellingen!B6 -> 3
A4: Klasse: | C4: M2 | F4: Aantal afval resultaten: | O4: =Instellingen!B7 -> 1
A5: Cat.: | F5: Plaatsingspunten niet gestart: | O5: =Instellingen!B5 -> 99 | BC5: Aantal reserves: | BL5: 2
F6: Lokatie: | G6: =Instellingen!B36 -> Hattem | O6: =Instellingen!B37 -> Ermelo | W6: =Instellingen!B38 -> Nunspeet | AE6: =Instellingen!B39 -> 0 | AM6: =Instellingen!B40 -> 0 | AU6: =Instellingen!B41 -> 0 | BC6: Dressuur | BI6: Pnt. 60% regel | BL6: 180
F7: Datum: | G7: =Instellingen!C36 -> 06 jun 2022 | O7: =Instellingen!C37 -> 18 jun 2022 | W7: =Instellingen!C38 -> 02 jul 2022 | AE7: =Instellingen!C39 ->  | AM7: =Instellingen!C40 ->  | AU7: =Instellingen!C41 ->  | BC7: Tot. | BD7: Tot. | BE7: afval | BF7: afval | BG7: afval | BH7: afval | BI7: Beste | BJ7: Beste
A8: Pl. | B8: Comb.nr. | C8: Ruiter/amazone | D8: Paard/pony | E8: kl. | F8: vereniging | G8: Ring | H8: pnt.C | I8: pnt.H | J8: pnt.tot | K8: ex 1 | L8: ex 2 | M8: pl. | N8: pl.p. | O8: Ring | P8: pnt.C | Q8: pnt.H | R8: pnt.tot. | S8: ex 1 | T8: ex 2 | U8: pl. | V8: pl.p. | W8: Ring | X8: pnt.C | Y8: pnt. H | Z8: pnt.tot. | AA8: ex 1 | AB8: ex 2 | AC8: pl. | AD8: pl.p. | AE8: Ring | AF8: pnt.C | AG8: pnt.H | AH8: pnt.tot. | AI8: ex 1 | AJ8: ex 2 | AK8: pl. | AL8: pl.p. | AM8: Ring | AN8: pnt.C | AO8: pnt.H | AP8: pnt.tot. | AQ8: ex 1 | AR8: ex 2 | AS8: pl. | AT8: pl.p. | AU8: Ring | AV8: pnt.C | AW8: pnt.H | AX8: pnt.tot. | AY8: ex 1 | AZ8: ex 2 | BA8: pl. | BB8: pl.p. | BC8: pl.pnt | BD8: punten | BE8: pl.pnt | BF8: pl.pnt | BG8: punten | BH8: punten | BI8: pl.pnt | BJ8: punten | BK8: Afv. | BL8: Res. | BM8: Afv. Regio | BN8: opmerking
A9: 1 | B9: 904477LW | C9: Stefanie Waaijenberg | D9: Lago Maggiore | E9: M2 | F9: Nunspeetse Ruiterclub, RV. | G9: 5 | H9: 214.5 | I9: 0 | J9: =H9+I9 -> 214.5 | K9: 6.5 | L9: 7 | M9: 1 | N9: 1 | O9: 1 | P9: 207 | Q9: 0 | R9: =P9+Q9 -> 207 | S9: 7 | T9: 8 | U9: 1 | V9: 1 | Z9: =X9+Y9 -> 0 | AD9: 99 | BC9: =N9+V9+AD9+AL9+AT9+BB9 -> 101 | BD9: =J9+R9+Z9+AH9+AP9+AX9 -> 421.5 | BE9: =IF($O$4>0,(LARGE(($N9,$V9,$AD9,$AL9,$AT9,$BB9),1)),"0") -> 99 | BG9: 0 | BH9: 0 | BI9: =BC9-BE9-BF9 -> 2 | BJ9: =BD9-BG9-BH9 -> 421.5 | BK9: 1 | BN9: Kringkampioen
A10: 2 | B10: 938773MP | C10: Kimberly Pap | D10: Martinez | E10: M2 | F10: Nunspeetse Ruiterclub, RV. | G10: 5 | H10: 212.5 | I10: 0 | J10: 212.5 | K10: 7 | L10: 9 | M10: 2 | N10: 2 | O10: 1 | P10: 206 | Q10: 0 | R10: 206 | S10: 7.5 | T10: 8 | U10: 2 | V10: 2 | Z10: 0 | AD10: 99 | BC10: 103 | BD10: 418.5 | BE10: =IF($O$4>0,(LARGE(($N10,$V10,$AD10,$AL10,$AT10,$BB10),1)),"0") -> 99 | BG10: 0 | BH10: 0 | BI10: 4 | BJ10: 418.5 | BK10: 2
A11: 3 | B11: 930770DG | C11: Marjolein Gevaert | D11: Dansa's La Morka | E11: M2 | F11: Heuvelruiters, RV. | G11: 5 | H11: 205.5 | I11: 0 | J11: 205.5 | K11: 7.5 | L11: 7.5 | M11: 3 | N11: 3 | R11: 0 | V11: 99 | W11: 3 | X11: 191.5 | Z11: 191.5 | AA11: 7 | AB11: 7 | AC11: 2 | AD11: 2 | BC11: 104 | BD11: 397 | BE11: =IF($O$4>0,(LARGE(($N11,$V11,$AD11,$AL11,$AT11,$BB11),1)),"0") -> 99 | BG11: 0 | BH11: 0 | BI11: 5 | BJ11: 397 | BK11: 3
A12: 4 | B12: 911836HB | C12: Kiki Bleeker | D12: Handsome | E12: M2 | F12: Nunspeetse Ruiterclub, RV. | J12: 0 | N12: 99 | O12: 1 | P12: 187 | Q12: 0 | R12: 187 | S12: 6 | T12: 6.5 | U12: 6 | V12: 6 | W12: 3 | X12: 193.5 | Z12: 193.5 | AA12: 6.5 | AB12: 7 | AC12: 1 | AD12: 1 | BC12: 106 | BD12: 380.5 | BE12: =IF($O$4>0,(LARGE(($N12,$V12,$AD12,$AL12,$AT12,$BB12),1)),"0") -> 99 | BG12: 0 | BH12: 0 | BI12: 7 | BJ12: 380.5 | BK12: 4
A13: 5 | B13: 903165LR | C13: Miranda Riezebos | D13: L Patron S | E13: M2 | F13: WWNA, RV. | G13: 5 | H13: 180.5 | I13: 0 | J13: 180.5 | K13: 6 | L13: 6.5 | M13: 4 | N13: 4 | O13: 1 | P13: 203.5 | Q13: 0 | R13: 203.5 | S13: 7 | T13: 6.5 | U13: 3 | V13: 3 | W13: 3 | X13: 180.5 | Z13: 180.5 | AA13: 6.5 | AB13: 7 | AC13: 4 | AD13: 4 | BC13: 11 | BD13: 564.5 | BE13: =IF($O$4>0,(LARGE(($N13,$V13,$AD13,$AL13,$AT13,$BB13),1)),"0") -> 4 | BG13: 180.5 | BH13: 0 | BI13: 7 | BJ13: 384 | BK13: 5
A14: 6 | B14: 766513BB | C14: Fleur Berkhof | D14: Bambino DB | E14: M2 | F14: Cannenburgh, RV. HV. De | G14: 5 | H14: 174 | I14: 0 | J14: 174 | K14: 6 | L14: 6 | M14: 7 | N14: 7 | O14: 1 | P14: 180 | Q14: 0 | R14: 180 | S14: 7 | T14: 6.5 | U14: 7 | V14: 7 | W14: 3 | X14: 182 | Z14: 182 | AA14: 7 | AB14: 7.5 | AC14: 3 | AD14: 3 | BC14: 17 | BD14: 536 | BE14: =IF($O$4>0,(LARGE(($N14,$V14,$AD14,$AL14,$AT14,$BB14),1)),"0") -> 7 | BG14: 174 | BH14: 0 | BI14: 10 | BJ14: 362 | BK14: 6 | BN14: Dispensatie
A15: 7 | B15: 725964FB | C15: Marloes Buitenhuis | D15: Fast Forward | E15: M2 | F15: Schaapskooiruiters, RV. | G15: 5 | H15: 179 | I15: 0 | J15: 179 | K15: 6.5 | L15: 6.5 | M15: 5 | N15: 5 | R15: 0 | V15: 99 | W15: 3 | X15: 180 | Z15: 180 | AA15: 6.5 | AB15: 7 | AC15: 5 | AD15: 5 | BC15: 109 | BD15: 359 | BE15: =IF($O$4>0,(LARGE(($N15,$V15,$AD15,$AL15,$AT15,$BB15),1)),"0") -> 99 | BG15: 0 | BH15: 0 | BI15: 10 | BJ15: 359 | BK15: 7
A16: 8 | B16: 923199LA | C16: Chantal Van Ark | D16: Lexmary | E16: M2 | F16: Randmeerruiters, RV. De | G16: 5 | H16: 176.5 | I16: 0 | J16: 176.5 | K16: 6 | L16: 6.5 | M16: 6 | N16: 6 | O16: 1 | P16: 195.5 | Q16: 0 | R16: 195.5 | S16: 7.5 | T16: 7 | U16: 5 | V16: 5 | Z16: 0 | AD16: 99 | BC16: 110 | BD16: 372 | BE16: =IF($O$4>0,(LARGE(($N16,$V16,$AD16,$AL16,$AT16,$BB16),1)),"0") -> 99 | BG16: 0 | BH16: 0 | BI16: 11 | BJ16: 372 | BK16: 8 | BM16: nee | BN16: Afgemeldt
A17: 9 | B17: 705439FH | C17: Jet Hanekamp | D17: Flip | E17: M2 | F17: Cannenburgh, RV. HV. De | G17: 5 | H17: 160.5 | I17: 0 | J17: 160.5 | K17: 5 | L17: 5 | M17: 9 | N17: 9 | R17: 0 | V17: 99 | W17: 3 | X17: 171.5 | Z17: 171.5 | AA17: 5 | AB17: 6.5 | AC17: 6 | AD17: 6 | BC17: 114 | BD17: 332 | BE17: =IF($O$4>0,(LARGE(($N17,$V17,$AD17,$AL17,$AT17,$BB17),1)),"0") -> 99 | BG17: 0 | BH17: 0 | BI17: 15 | BJ17: 332
A18: 10 | B18: 846763JE | C18: Driesina Rebel - Van Engelen | D18: Jandré | E18: M2 | F18: Nunspeetse Ruiterclub, RV. | J18: 0 | N18: 99 | O18: 1 | P18: 201 | Q18: 0 | R18: 201 | S18: 7 | T18: 7 | U18: 4 | V18: 4 | Z18: 0 | AD18: 99 | BC18: 202 | BD18: 201 | BE18: =IF($O$4>0,(LARGE(($N18,$V18,$AD18,$AL18,$AT18,$BB18),1)),"0") -> 99 | BG18: 0 | BH18: 0 | BI18: 103 | BJ18: 201
A19: 11 | B19: 901381KR | C19: Satu Pleijter - Rahikka | D19: Kristal Lady | E19: M2 | F19: Noord Veluwe, RV. PSV | J19: 0 | N19: 99 | O19: 1 | P19: 180 | Q19: 0 | R19: 180 | S19: 5.5 | T19: 6.5 | U19: 8 | V19: 8 | Z19: 0 | AD19: 99 | BC19: 206 | BD19: 180 | BE19: =IF($O$4>0,(LARGE(($N19,$V19,$AD19,$AL19,$AT19,$BB19),1)),"0") -> 99 | BG19: 0 | BH19: 0 | BI19: 107 | BJ19: 180
A20: 12 | B20: 784627AB | C20: Diana Boom | D20: Anna Diva | E20: M2 | F20: Cannenburgh, RV. HV. De | G20: 5 | H20: 161 | I20: 0 | J20: 161 | K20: 5 | L20: 5 | M20: 8 | N20: 8 | R20: 0 | V20: 99 | Z20: 0 | AD20: 99 | BC20: 206 | BD20: 161 | BE20: =IF($O$4>0,(LARGE(($N20,$V20,$AD20,$AL20,$AT20,$BB20),1)),"0") -> 99 | BG20: 0 | BH20: 0 | BI20: 107 | BJ20: 161
A21: 13 | B21: 868242HM | C21: Marjon Melessen | D21: Hit | E21: M2 | F21: Lelyruiters, RV. | J21: 0 | N21: 99 | O21: 1 | P21: 170 | Q21: 0 | R21: 170 | S21: 5.5 | T21: 6 | U21: 9 | V21: 9 | Z21: 0 | AD21: 99 | BC21: 207 | BD21: 170 | BE21: =IF($O$4>0,(LARGE(($N21,$V21,$AD21,$AL21,$AT21,$BB21),1)),"0") -> 99 | BG21: 0 | BH21: 0 | BI21: 108 | BJ21: 170

Sheet M1 - M2 (hidden)
A1: Selectie uitslagen
C2: 1 | D2: =FLOOR((C2+3)/4,1) -> 1 | G2: 192 | H2: 192 | I2: 190 | J2: =H2+I2 -> 382 | N2: 1 | O2: 193 | P2: 193 | Q2: 193 | R2: =P2+Q2 -> 386 | V2: 2 | W2: 198 | X2: 198 | Y2: 198 | Z2: =X2+Y2 -> 396 | AD2: 3 | AE2: 177 | AF2: 177 | AG2: 177 | AH2: =AF2+AG2 -> 354 | AL2: 4 | AM2: 178 | AN2: 178 | AO2: 178 | AP2: =AN2+AO2 -> 356 | AT2: 5 | AU2: 179 | AV2: 179 | AW2: 179 | AX2: =AV2+AW2 -> 358 | BB2: 6 | BC2: =N2+V2+AD2+AL2+AT2+BB2 -> 21 | BD2: =J2+R2+Z2+AH2+AP2+AX2 -> 2232 | BE2: =IF($O$4>0,(LARGE(($N2,$V2,$AD2,$AL2,$AT2,$BB2),1)),"0") -> 6 | BF2: =IF($O$4>0,(LARGE(($N2,$V2,$AD2,$AL2,$AT2,$BB2),2)),"0") -> 5 | BG2: 354 | BH2: 354 | BI2: =BC2-BE2-BF2 -> 10 | BJ2: =BD2-BG2-BH2 -> 1524
A3: Kring: | C3: =Instellingen!B3 -> Kring NVF | BC3: Aantal wedstrijden: | BL3: =Instellingen!B6 -> 3
A4: Klasse: | C4: M1 - M2 | F4: Aantal afval resultaten: | O4: =Instellingen!B7 -> 1
A5: Cat.: | F5: Plaatsingspunten niet gestart: | O5: =Instellingen!B5 -> 99
F6: Lokatie: | G6: =Instellingen!B36 -> Hattem | O6: =Instellingen!B37 -> Ermelo | W6: =Instellingen!B38 -> Nunspeet | AE6: =Instellingen!B39 -> 0 | AM6: =Instellingen!B40 -> 0 | AU6: =Instellingen!B41 -> 0 | BC6: Dressuur
F7: Datum: | G7: =Instellingen!C36 -> 06 jun 2022 | O7: =Instellingen!C37 -> 18 jun 2022 | W7: =Instellingen!C38 -> 02 jul 2022 | AE7: =Instellingen!C39 ->  | AM7: =Instellingen!C40 ->  | AU7: =Instellingen!C41 ->  | BC7: Tot. | BD7: Tot. | BE7: afval | BF7: afval | BG7: afval | BH7: afval | BI7: Beste | BJ7: Beste
A8: Pl. | B8: Comb.nr. | C8: Ruiter/amazone | D8: Paard/pony | E8: kl. | F8: vereniging | G8: Ring | H8: pnt.C | I8: pnt.H | J8: pnt.tot | K8: ex 1 | L8: ex 2 | M8: pl. | N8: pl.p. | O8: Ring | P8: pnt.C | Q8: pnt.H | R8: pnt.tot. | S8: ex 1 | T8: ex 2 | U8: pl. | V8: pl.p. | W8: Ring | X8: pnt.C | Y8: pnt. H | Z8: pnt.tot. | AA8: ex 1 | AB8: ex 2 | AC8: pl. | AD8: pl.p. | AE8: Ring | AF8: pnt.C | AG8: pnt.H | AH8: pnt.tot. | AI8: ex 1 | AJ8: ex 2 | AK8: pl. | AL8: pl.p. | AM8: Ring | AN8: pnt.C | AO8: pnt.H | AP8: pnt.tot. | AQ8: ex 1 | AR8: ex 2 | AS8: pl. | AT8: pl.p. | AU8: Ring | AV8: pnt.C | AW8: pnt.H | AX8: pnt.tot. | AY8: ex 1 | AZ8: ex 2 | BA8: pl. | BB8: pl.p. | BC8: pl.pnt | BD8: punten | BE8: pl.pnt | BF8: pl.pnt | BG8: punten | BH8: punten | BI8: pl.pnt | BJ8: punten | BK8: Afv. | BL8: Res. | BN8: opmerking

Sheet Z1
A1: Selectie uitslagen
C2: 1 | D2: =FLOOR((C2+3)/4,1) -> 1 | H2: 192 | I2: 190 | J2: =H2+I2 -> 382 | N2: 1 | P2: 193 | Q2: 193 | R2: =P2+Q2 -> 386 | V2: 2 | X2: 198 | Y2: 198 | Z2: =X2+Y2 -> 396 | AD2: 3 | AF2: 177 | AG2: 177 | AH2: =AF2+AG2 -> 354 | AL2: 4 | AN2: 178 | AO2: 178 | AP2: =AN2+AO2 -> 356 | AT2: 5 | AV2: 179 | AW2: 179 | AX2: =AV2+AW2 -> 358 | BB2: 6 | BC2: =N2+V2+AD2+AL2+AT2+BB2 -> 21 | BD2: =J2+R2+Z2+AH2+AP2+AX2 -> 2232 | BE2: =IF($O$4>0,(LARGE(($N2,$V2,$AD2,$AL2,$AT2,$BB2),1)),"0") -> 6 | BF2: =IF($O$4>0,(LARGE(($N2,$V2,$AD2,$AL2,$AT2,$BB2),2)),"0") -> 5 | BG2: 354 | BH2: 354 | BI2: =BC2-BE2-BF2 -> 10 | BJ2: =BD2-BG2-BH2 -> 1524
A3: Kring: | C3: =Instellingen!B3 -> Kring NVF | F3: Aantal afvaardiging Regio: | O3: 7 | BC3: Aantal wedstrijden: | BL3: =Instellingen!B6 -> 3
A4: Klasse: | C4: Z1 | F4: Aantal afval resultaten: | O4: =Instellingen!B7 -> 1
A5: Cat.: | F5: Plaatsingspunten niet gestart: | O5: =Instellingen!B5 -> 99 | BC5: Aantal reserves: | BL5: 2
F6: Lokatie: | G6: =Instellingen!B36 -> Hattem | O6: =Instellingen!B37 -> Ermelo | W6: =Instellingen!B38 -> Nunspeet | AE6: =Instellingen!B39 -> 0 | AM6: =Instellingen!B40 -> 0 | AU6: =Instellingen!B41 -> 0 | BC6: Dressuur | BI6: Pnt. 60% regel | BL6: 210
F7: Datum: | G7: =Instellingen!C36 -> 06 jun 2022 | O7: =Instellingen!C37 -> 18 jun 2022 | W7: =Instellingen!C38 -> 02 jul 2022 | AE7: =Instellingen!C39 ->  | AM7: =Instellingen!C40 ->  | AU7: =Instellingen!C41 ->  | BC7: Tot. | BD7: Tot. | BE7: afval | BF7: afval | BG7: afval | BH7: afval | BI7: Beste | BJ7: Beste
A8: Pl. | B8: Comb.nr. | C8: Ruiter/amazone | D8: Paard/pony | E8: kl. | F8: vereniging | G8: Ring | H8: pnt.C | I8: pnt.H | J8: pnt.tot | K8: ex 1 | L8: ex 2 | M8: pl. | N8: pl.p. | O8: Ring | P8: pnt.C | Q8: pnt.H | R8: pnt.tot. | S8: ex 1 | T8: ex 2 | U8: pl. | V8: pl.p. | W8: Ring | X8: pnt.C | Y8: pnt. H | Z8: pnt.tot. | AA8: ex 1 | AB8: ex 2 | AC8: pl. | AD8: pl.p. | AE8: Ring | AF8: pnt.C | AG8: pnt.H | AH8: pnt.tot. | AI8: ex 1 | AJ8: ex 2 | AK8: pl. | AL8: pl.p. | AM8: Ring | AN8: pnt.C | AO8: pnt.H | AP8: pnt.tot. | AQ8: ex 1 | AR8: ex 2 | AS8: pl. | AT8: pl.p. | AU8: Ring | AV8: pnt.C | AW8: pnt.H | AX8: pnt.tot. | AY8: ex 1 | AZ8: ex 2 | BA8: pl. | BB8: pl.p. | BC8: pl.pnt | BD8: punten | BE8: pl.pnt | BF8: pl.pnt | BG8: punten | BH8: punten | BI8: pl.pnt | BJ8: punten | BK8: Afv. | BL8: Res. | BM8: Afv. Regio | BN8: opmerking
A9: 1 | B9: 893870LS | C9: Romy Schaftenaar | D9: LanaCapri | E9: Z1 | F9: Schaapskooiruiters, RV. | G9: 1 | H9: 230.5 | I9: 0 | J9: =H9+I9 -> 230.5 | K9: 6.5 | L9: 6.5 | M9: 3 | N9: 3 | O9: 1 | P9: 246 | Q9: 0 | R9: =P9+Q9 -> 246 | S9: 7.5 | T9: 7.5 | U9: 1 | V9: 1 | W9: 3 | X9: 240.5 | Z9: =X9+Y9 -> 240.5 | AA9: 6.5 | AB9: 7 | AC9: 1 | AD9: 1 | BC9: =N9+V9+AD9+AL9+AT9+BB9 -> 5 | BD9: =J9+R9+Z9+AH9+AP9+AX9 -> 717 | BE9: =IF($O$4>0,(LARGE(($N9,$V9,$AD9,$AL9,$AT9,$BB9),1)),"0") -> 3 | BG9: 230.5 | BH9: 0 | BI9: =BC9-BE9-BF9 -> 2 | BJ9: =BD9-BG9-BH9 -> 486.5 | BK9: 1 | BN9: Kringkampioen
A10: 2 | B10: 911855JB | C10: Anne-marije Van den Berg | D10: Janny-Fee | E10: Z1 | F10: Heuvelruiters, RV. | G10: 1 | H10: 241.5 | I10: 0 | J10: 241.5 | K10: 6.5 | L10: 7 | M10: 1 | N10: 1 | O10: 1 | P10: 232 | Q10: 0 | R10: 232 | S10: 7 | T10: 7 | U10: 2 | V10: 2 | W10: 3 | X10: 237.5 | Z10: 237.5 | AA10: 7 | AB10: 7 | AC10: 3 | AD10: 3 | BC10: 6 | BD10: 711 | BE10: =IF($O$4>0,(LARGE(($N10,$V10,$AD10,$AL10,$AT10,$BB10),1)),"0") -> 3 | BG10: 237.5 | BH10: 0 | BI10: 3 | BJ10: 473.5 | BK10: 2
A11: 3 | B11: 866953BV | C11: Helma Franken - Vromen | D11: Bon Jovi | E11: Z1 | F11: Nunspeetse Ruiterclub, RV. | G11: 1 | H11: 226 | I11: 0 | J11: 226 | K11: 7 | L11: 6.5 | M11: 4 | N11: 4 | O11: 1 | P11: 223 | Q11: 0 | R11: 223 | S11: 6.5 | T11: 6.5 | U11: 7 | V11: 7 | W11: 3 | X11: 238 | Z11: 238 | AA11: 6.5 | AB11: 7 | AC11: 2 | AD11: 2 | BC11: 13 | BD11: 687 | BE11: =IF($O$4>0,(LARGE(($N11,$V11,$AD11,$AL11,$AT11,$BB11),1)),"0") -> 7 | BG11: 223 | BH11: 0 | BI11: 6 | BJ11: 464 | BK11: 3 | BN11: Laat ivm pony leerlingen
A12: 4 | B12: 947388LW | C12: Stefanie Waaijenberg | D12: Lakewood Tarpania | E12: Z1 | F12: Nunspeetse Ruiterclub, RV. | G12: 1 | H12: 236 | I12: 0 | J12: 236 | K12: 7.5 | L12: 7 | M12: 2 | N12: 2 | O12: 1 | P12: 226.5 | Q12: 0 | R12: 226.5 | S12: 6 | T12: 6.5 | U12: 4 | V12: 4 | W12: 3 | X12: 231.5 | Z12: 231.5 | AA12: 6.5 | AB12: 7 | AC12: 4 | AD12: 4 | BC12: 10 | BD12: 694 | BE12: =IF($O$4>0,(LARGE(($N12,$V12,$AD12,$AL12,$AT12,$BB12),1)),"0") -> 4 | BG12: 226.5 | BH12: 0 | BI12: 6 | BJ12: 467.5 | BK12: 4 | BN12: Start ook M2
A13: 5 | B13: 914806JW | C13: Stefanie Waaijenberg | D13: Juny | E13: Z1 | F13: Nunspeetse Ruiterclub, RV. | G13: 1 | H13: 223 | I13: 0 | J13: 223 | K13: 7 | L13: 6.5 | M13: 5 | N13: 5 | O13: 1 | P13: 0 | Q13: 0 | R13: 0 | U13: 18 | V13: 90 | W13: 3 | X13: 231.5 | Z13: 231.5 | AA13: 6.5 | AB13: 7 | AC13: 4 | AD13: 4 | BC13: 99 | BD13: 454.5 | BE13: =IF($O$4>0,(LARGE(($N13,$V13,$AD13,$AL13,$AT13,$BB13),1)),"0") -> 90 | BG13: 0 | BH13: 0 | BI13: 9 | BJ13: 454.5 | BK13: 5 | BN13: Start ook M2
A14: 6 | B14: 856655JM | C14: Gerrit Morren | D14: Jilvania | E14: Z1 | F14: Nunspeetse Ruiterclub, RV. | G14: 1 | H14: 215.5 | I14: 0 | J14: 215.5 | K14: 6.5 | L14: 6.5 | M14: 8 | N14: 8 | O14: 1 | P14: 228.5 | Q14: 0 | R14: 228.5 | S14: 7 | T14: 7 | U14: 3 | V14: 3 | W14: 3 | X14: 215 | Z14: 215 | AA14: 6.5 | AB14: 6.5 | AC14: 8 | AD14: 8 | BC14: 19 | BD14: 659 | BE14: =IF($O$4>0,(LARGE(($N14,$V14,$AD14,$AL14,$AT14,$BB14),1)),"0") -> 8 | BG14: 215 | BH14: 0 | BI14: 11 | BJ14: 444 | BK14: 6
A15: 7 | B15: 852306JM | C15: Melanie Mulder | D15: Jody | E15: Z1 | F15: Marleruiters, RV. | G15: 1 | H15: 212 | I15: 0 | J15: 212 | K15: 6.5 | L15: 6.5 | M15: 10 | N15: 10 | O15: 1 | P15: 225 | Q15: 0 | R15: 225 | S15: 7 | T15: 7 | U15: 6 | V15: 6 | W15: 3 | X15: 224.5 | Z15: 224.5 | AA15: 6.5 | AB15: 7 | AC15: 6 | AD15: 6 | BC15: 22 | BD15: 661.5 | BE15: =IF($O$4>0,(LARGE(($N15,$V15,$AD15,$AL15,$AT15,$BB15),1)),"0") -> 10 | BG15: 212 | BH15: 0 | BI15: 12 | BJ15: 449.5 | BK15: 7
A16: 8 | B16: 904349JW | C16: Alice Weijman | D16: Joey | E16: Z1 | F16: Nunspeetse Ruiterclub, RV. | G16: 1 | H16: 216.5 | I16: 0 | J16: 216.5 | K16: 5.5 | L16: 6 | M16: 7 | N16: 7 | O16: 1 | P16: 203.5 | Q16: 0 | R16: 203.5 | S16: 5.5 | T16: 5.5 | U16: 15 | V16: 15 | W16: 3 | X16: 217 | Z16: 217 | AA16: 7 | AB16: 7 | AC16: 7 | AD16: 7 | BC16: 29 | BD16: 637 | BE16: =IF($O$4>0,(LARGE(($N16,$V16,$AD16,$AL16,$AT16,$BB16),1)),"0") -> 15 | BG16: 203.5 | BH16: 0 | BI16: 14 | BJ16: 433.5 | BL16: 1
A17: 9 | B17: 876144JS | C17: Lotte Schut | D17: Jazzy T | E17: Z1 | F17: Schaapskooiruiters, RV. | G17: 1 | H17: 219 | I17: 0 | J17: 219 | K17: 7 | L17: 6.5 | M17: 6 | N17: 6 | O17: 1 | P17: 215 | Q17: 0 | R17: 215 | S17: 6 | T17: 6.5 | U17: 8 | V17: 8 | W17: 3 | X17: 212.5 | Z17: 212.5 | AA17: 6.5 | AB17: 6.5 | AC17: 9 | AD17: 9 | BC17: 23 | BD17: 646.5 | BE17: =IF($O$4>0,(LARGE(($N17,$V17,$AD17,$AL17,$AT17,$BB17),1)),"0") -> 9 | BG17: 212.5 | BH17: 0 | BI17: 14 | BJ17: 434 | BL17: 2
A18: 10 | B18: 905907JG | C18: Stefanie De Groot | D18: Joy Story | E18: Z1 | F18: Heuvelruiters, RV. | G18: 1 | H18: 210.5 | I18: 0 | J18: 210.5 | K18: 6 | L18: 6 | M18: 12 | N18: 12 | O18: 1 | P18: 208 | Q18: 0 | R18: 208 | S18: 6 | T18: 6 | U18: 10 | V18: 10 | W18: 3 | X18: 201 | Z18: 201 | AA18: 6 | AB18: 6.5 | AC18: 10 | AD18: 10 | BC18: 32 | BD18: 619.5 | BE18: =IF($O$4>0,(LARGE(($N18,$V18,$AD18,$AL18,$AT18,$BB18),1)),"0") -> 12 | BG18: 210.5 | BH18: 0 | BI18: 20 | BJ18: 409
A19: 11 | B19: 947348FB | C19: Arend Bossenbroek | D19: Flirt | E19: Z1 | F19: Heuvelruiters, RV. | G19: 1 | H19: 214 | I19: 0 | J19: 214 | K19: 6 | L19: 6 | M19: 9 | N19: 9 | R19: 0 | V19: 99 | W19: 3 | X19: 199.5 | Z19: 199.5 | AA19: 6 | AB19: 6 | AC19: 11 | AD19: 11 | BC19: 119 | BD19: 413.5 | BE19: =IF($O$4>0,(LARGE(($N19,$V19,$AD19,$AL19,$AT19,$BB19),1)),"0") -> 99 | BG19: 0 | BH19: 0 | BI19: 20 | BJ19: 413.5
A20: 12 | B20: 794504HD | C20: Bianca Dreierink | D20: Hernandèz m | E20: Z1 | F20: Oost-Veluwse R.J.V., RV. | G20: 1 | H20: 192 | I20: 0 | J20: 192 | K20: 6 | L20: 5.5 | M20: 18 | N20: 18 | O20: 1 | P20: 207.5 | Q20: 0 | R20: 207.5 | S20: 6 | T20: 6 | U20: 11 | V20: 11 | W20: 3 | X20: 198 | Z20: 198 | AA20: 5 | AB20: 6.5 | AC20: 12 | AD20: 12 | BC20: 41 | BD20: 597.5 | BE20: =IF($O$4>0,(LARGE(($N20,$V20,$AD20,$AL20,$AT20,$BB20),1)),"0") -> 18 | BG20: 192 | BH20: 0 | BI20: 23 | BJ20: 405.5
A21: 13 | B21: 883985KD | C21: Benice Deelen | D21: Katie | E21: Z1 | F21: Nunspeetse Ruiterclub, RV. | G21: 1 | H21: 211 | I21: 0 | J21: 211 | K21: 5 | L21: 6 | M21: 11 | N21: 11 | O21: 1 | P21: 193 | Q21: 0 | R21: 193 | S21: 6 | T21: 5 | U21: 17 | V21: 17 | Z21: 0 | AD21: 99 | BC21: 127 | BD21: 404 | BE21: =IF($O$4>0,(LARGE(($N21,$V21,$AD21,$AL21,$AT21,$BB21),1)),"0") -> 99 | BG21: 0 | BH21: 0 | BI21: 28 | BJ21: 404
A22: 14 | B22: 842119HJ | C22: Christel Jansen van der sligte | D22: Hazzle Woods | E22: Z1 | F22: Cannenburgh, RV. HV. De | J22: 0 | N22: 99 | O22: 1 | P22: 225.5 | Q22: 0 | R22: 225.5 | S22: 6.5 | T22: 6.5 | U22: 5 | V22: 5 | Z22: 0 | AD22: 99 | BC22: 203 | BD22: 225.5 | BE22: =IF($O$4>0,(LARGE(($N22,$V22,$AD22,$AL22,$AT22,$BB22),1)),"0") -> 99 | BG22: 0 | BH22: 0 | BI22: 104 | BJ22: 225.5
A23: 15 | B23: 903836LD | C23: Sanne Diercks | D23: Lydensie | E23: Z1 | F23: Oost-Veluwse R.J.V., RV. | J23: 0 | N23: 99 | O23: 1 | P23: 213 | Q23: 0 | R23: 213 | S23: 6 | T23: 6 | U23: 9 | V23: 9 | Z23: 0 | AD23: 99 | BC23: 207 | BD23: 213 | BE23: =IF($O$4>0,(LARGE(($N23,$V23,$AD23,$AL23,$AT23,$BB23),1)),"0") -> 99 | BG23: 0 | BH23: 0 | BI23: 108 | BJ23: 213
A24: 16 | B24: 953288IL | C24: Linda Koopman - Lammers | D24: Iroko | E24: Z1 | F24: Koopman Horses | J24: 0 | N24: 99 | O24: 1 | P24: 207.5 | Q24: 0 | R24: 207.5 | S24: 6 | T24: 6 | U24: 11 | V24: 11 | Z24: 0 | AD24: 99 | BC24: 209 | BD24: 207.5 | BE24: =IF($O$4>0,(LARGE(($N24,$V24,$AD24,$AL24,$AT24,$BB24),1)),"0") -> 99 | BG24: 0 | BH24: 0 | BI24: 110 | BJ24: 207.5
A25: 17 | B25: 911454EL | C25: Alice Naber - Lozeman | D25: If Evert | E25: Z1 | F25: Flevoruiters, RV. | G25: 1 | H25: 208 | I25: 0 | J25: 208 | K25: 6 | L25: 5.5 | M25: 13 | N25: 13 | R25: 0 | V25: 99 | Z25: 0 | AD25: 99 | BC25: 211 | BD25: 208 | BE25: =IF($O$4>0,(LARGE(($N25,$V25,$AD25,$AL25,$AT25,$BB25),1)),"0") -> 99 | BG25: 0 | BH25: 0 | BI25: 112 | BJ25: 208
A26: 18 | B26: 877174KV | C26: Imke Vredenberg | D26: Kavani | E26: Z1 | F26: Pothoven (pa), HS | J26: 0 | N26: 99 | O26: 1 | P26: 206 | Q26: 0 | R26: 206 | S26: 6.5 | T26: 6 | U26: 13 | V26: 13 | Z26: 0 | AD26: 99 | BC26: 211 | BD26: 206 | BE26: =IF($O$4>0,(LARGE(($N26,$V26,$AD26,$AL26,$AT26,$BB26),1)),"0") -> 99 | BG26: 0 | BH26: 0 | BI26: 112 | BJ26: 206
A27: 19 | B27: 916020IP | C27: Erinke Van der Plank | D27: Ilucienne Lh | E27: Z1 | F27: Oost-Veluwse R.J.V., RV. | G27: 1 | H27: 207.5 | I27: 0 | J27: 207.5 | K27: 6 | L27: 5 | M27: 14 | N27: 14 | R27: 0 | V27: 99 | Z27: 0 | AD27: 99 | BC27: 212 | BD27: 207.5 | BE27: =IF($O$4>0,(LARGE(($N27,$V27,$AD27,$AL27,$AT27,$BB27),1)),"0") -> 99 | BG27: 0 | BH27: 0 | BI27: 113 | BJ27: 207.5
A28: 20 | B28: 921109DM | C28: Kim Miedema | D28: Balance KH | E28: Z1 | F28: Koopman Horses | J28: 0 | N28: 99 | O28: 1 | P28: 205 | Q28: 0 | R28: 205 | S28: 6.5 | T28: 6.5 | U28: 14 | V28: 14 | Z28: 0 | AD28: 99 | BC28: 212 | BD28: 205 | BE28: =IF($O$4>0,(LARGE(($N28,$V28,$AD28,$AL28,$AT28,$BB28),1)),"0") -> 99 | BG28: 0 | BH28: 0 | BI28: 113 | BJ28: 205
A29: 21 | B29: 746964SD | C29: Elisa Driehuis | D29: Spoekedammetje's Norah | E29: Z1 | F29: WWNA, RV. | G29: 1 | H29: 207 | I29: 0 | J29: 207 | K29: 7 | L29: 6.5 | M29: 15 | N29: 15 | R29: 0 | V29: 99 | Z29: 0 | AD29: 99 | BC29: 213 | BD29: 207 | BE29: =IF($O$4>0,(LARGE(($N29,$V29,$AD29,$AL29,$AT29,$BB29),1)),"0") -> 99 | BG29: 0 | BH29: 0 | BI29: 114 | BJ29: 207
A30: 22 | B30: 796184IK | C30: Natalie Karssing | D30: Iona's Ayla | E30: Z1 | F30: Schaapskooiruiters, RV. | G30: 1 | H30: 205.5 | I30: 0 | J30: 205.5 | K30: 6 | L30: 6 | M30: 16 | N30: 16 | R30: 0 | V30: 99 | Z30: 0 | AD30: 99 | BC30: 214 | BD30: 205.5 | BE30: =IF($O$4>0,(LARGE(($N30,$V30,$AD30,$AL30,$AT30,$BB30),1)),"0") -> 99 | BG30: 0 | BH30: 0 | BI30: 115 | BJ30: 205.5
A31: 23 | B31: 924470SG | C31: Francis Van Gemert | D31: Serverius Don Remo | E31: Z1 | F31: Nunspeetse Ruiterclub, RV. | J31: 0 | N31: 99 | O31: 1 | P31: 198 | Q31: 0 | R31: 198 | S31: 5 | T31: 5.5 | U31: 16 | V31: 16 | Z31: 0 | AD31: 99 | BC31: 214 | BD31: 198 | BE31: =IF($O$4>0,(LARGE(($N31,$V31,$AD31,$AL31,$AT31,$BB31),1)),"0") -> 99 | BG31: 0 | BH31: 0 | BI31: 115 | BJ31: 198
A32: 24 | B32: 903056KO | C32: Barbara Oosterkamp | D32: Karisto | E32: Z1 | F32: Marleruiters, RV. | G32: 1 | H32: 199.5 | I32: 0 | J32: 199.5 | K32: 6.5 | L32: 6 | M32: 17 | N32: 17 | R32: 0 | V32: 99 | Z32: 0 | AD32: 99 | BC32: 215 | BD32: 199.5 | BE32: =IF($O$4>0,(LARGE(($N32,$V32,$AD32,$AL32,$AT32,$BB32),1)),"0") -> 99 | BG32: 0 | BH32: 0 | BI32: 116 | BJ32: 199.5

Sheet Z2
A1: Selectie uitslagen
C2: 1 | D2: =FLOOR((C2+3)/4,1) -> 1 | H2: 192 | I2: 190 | J2: =H2+I2 -> 382 | N2: 1 | P2: 193 | Q2: 193 | R2: =P2+Q2 -> 386 | V2: 2 | X2: 198 | Y2: 198 | Z2: =X2+Y2 -> 396 | AD2: 3 | AF2: 177 | AG2: 177 | AH2: =AF2+AG2 -> 354 | AL2: 4 | AN2: 178 | AO2: 178 | AP2: =AN2+AO2 -> 356 | AT2: 5 | AV2: 179 | AW2: 179 | AX2: =AV2+AW2 -> 358 | BB2: 6 | BC2: =N2+V2+AD2+AL2+AT2+BB2 -> 21 | BD2: =J2+R2+Z2+AH2+AP2+AX2 -> 2232 | BE2: =IF($O$4>0,(LARGE(($N2,$V2,$AD2,$AL2,$AT2,$BB2),1)),"0") -> 6 | BF2: =IF($O$4>0,(LARGE(($N2,$V2,$AD2,$AL2,$AT2,$BB2),2)),"0") -> 5 | BG2: 354 | BH2: 354 | BI2: =BC2-BE2-BF2 -> 10 | BJ2: =BD2-BG2-BH2 -> 1524
A3: Kring: | C3: =Instellingen!B3 -> Kring NVF | F3: Aantal afvaardiging Regio: | O3: 3 | BC3: Aantal wedstrijden: | BL3: =Instellingen!B6 -> 3
A4: Klasse: | C4: Z2 | F4: Aantal afval resultaten: | O4: =Instellingen!B7 -> 1
A5: Cat.: | F5: Plaatsingspunten niet gestart: | O5: =Instellingen!B5 -> 99 | BC5: Aantal reserves: | BL5: 2
F6: Lokatie: | G6: =Instellingen!B36 -> Hattem | O6: =Instellingen!B37 -> Ermelo | W6: =Instellingen!B38 -> Nunspeet | AE6: =Instellingen!B39 -> 0 | AM6: =Instellingen!B40 -> 0 | AU6: =Instellingen!B41 -> 0 | BC6: Dressuur | BI6: Pnt. 60% regel | BL6: 210
F7: Datum: | G7: =Instellingen!C36 -> 06 jun 2022 | O7: =Instellingen!C37 -> 18 jun 2022 | W7: =Instellingen!C38 -> 02 jul 2022 | AE7: =Instellingen!C39 ->  | AM7: =Instellingen!C40 ->  | AU7: =Instellingen!C41 ->  | BC7: Tot. | BD7: Tot. | BE7: afval | BF7: afval | BG7: afval | BH7: afval | BI7: Beste | BJ7: Beste
A8: Pl. | B8: Comb.nr. | C8: Ruiter/amazone | D8: Paard/pony | E8: kl. | F8: vereniging | G8: Ring | H8: pnt.C | I8: pnt.H | J8: pnt.tot | K8: ex 1 | L8: ex 2 | M8: pl. | N8: pl.p. | O8: Ring | P8: pnt.C | Q8: pnt.H | R8: pnt.tot. | S8: ex 1 | T8: ex 2 | U8: pl. | V8: pl.p. | W8: Ring | X8: pnt.C | Y8: pnt. H | Z8: pnt.tot. | AA8: ex 1 | AB8: ex 2 | AC8: pl. | AD8: pl.p. | AE8: Ring | AF8: pnt.C | AG8: pnt.H | AH8: pnt.tot. | AI8: ex 1 | AJ8: ex 2 | AK8: pl. | AL8: pl.p. | AM8: Ring | AN8: pnt.C | AO8: pnt.H | AP8: pnt.tot. | AQ8: ex 1 | AR8: ex 2 | AS8: pl. | AT8: pl.p. | AU8: Ring | AV8: pnt.C | AW8: pnt.H | AX8: pnt.tot. | AY8: ex 1 | AZ8: ex 2 | BA8: pl. | BB8: pl.p. | BC8: pl.pnt | BD8: punten | BE8: pl.pnt | BF8: pl.pnt | BG8: punten | BH8: punten | BI8: pl.pnt | BJ8: punten | BK8: Afv. | BL8: Res. | BM8: Afv. Regio | BN8: opmerking
A9: 1 | B9: 892237DG | C9: Marjolein Gevaert | D9: Dansa's Isadansa | E9: Z2 | F9: Heuvelruiters, RV. | G9: 1 | H9: 218 | I9: 0 | J9: =H9+I9 -> 218 | K9: 6.5 | L9: 6.5 | M9: 2 | N9: 2 | R9: =P9+Q9 -> 0 | V9: 99 | W9: 3 | X9: 226 | Z9: =X9+Y9 -> 226 | AA9: 6.5 | AB9: 6.5 | AC9: 1 | AD9: 1 | BC9: =N9+V9+AD9+AL9+AT9+BB9 -> 102 | BD9: =J9+R9+Z9+AH9+AP9+AX9 -> 444 | BE9: =IF($O$4>0,(LARGE(($N9,$V9,$AD9,$AL9,$AT9,$BB9),1)),"0") -> 99 | BG9: 0 | BH9: 0 | BI9: =BC9-BE9-BF9 -> 3 | BJ9: =BD9-BG9-BH9 -> 444 | BK9: 1 | BN9: Kringkampioen
A10: 2 | B10: 719193FO | C10: Astrid Prinsen - Osinga | D10: Flamenco | E10: Z2 | F10: Oost-Veluwse R.J.V., RV. | J10: 0 | N10: 99 | O10: 1 | P10: 222.5 | Q10: 0 | R10: 222.5 | S10: 6.5 | T10: 7.5 | U10: 1 | V10: 1 | W10: 3 | X10: 224.5 | Z10: 224.5 | AA10: 6.5 | AB10: 7 | AC10: 2 | AD10: 2 | BC10: 102 | BD10: 447 | BE10: =IF($O$4>0,(LARGE(($N10,$V10,$AD10,$AL10,$AT10,$BB10),1)),"0") -> 99 | BG10: 0 | BH10: 0 | BI10: 3 | BJ10: 447 | BK10: 2
A11: 3 | B11: 878034FM | C11: Annemarie Jansen - Migchelbrink | D11: Feniks | E11: Z2 | F11: Nunspeetse Ruiterclub, RV. | G11: 1 | H11: 222 | I11: 0 | J11: 222 | K11: 6 | L11: 6 | M11: 1 | N11: 1 | O11: 1 | P11: 207.5 | Q11: 0 | R11: 207.5 | S11: 4 | T11: 6 | U11: 4 | V11: 4 | W11: 3 | X11: 216 | Z11: 216 | AA11: 6.5 | AB11: 7 | AC11: 3 | AD11: 3 | BC11: 8 | BD11: 645.5 | BE11: =IF($O$4>0,(LARGE(($N11,$V11,$AD11,$AL11,$AT11,$BB11),1)),"0") -> 4 | BG11: 207.5 | BH11: 0 | BI11: 4 | BJ11: 438 | BK11: 3
A12: 4 | B12: 724642FR | C12: Lisette De Reus | D12: Figo | E12: Z2 | F12: Oost-Veluwse R.J.V., RV. | J12: 0 | N12: 99 | O12: 1 | P12: 211 | Q12: 0 | R12: 211 | S12: 6.5 | T12: 6.5 | U12: 2 | V12: 2 | Z12: 0 | AD12: 99 | BC12: 200 | BD12: 211 | BE12: =IF($O$4>0,(LARGE(($N12,$V12,$AD12,$AL12,$AT12,$BB12),1)),"0") -> 99 | BG12: 0 | BH12: 0 | BI12: 101 | BJ12: 211
A13: 5 | B13: 715864EK | C13: Linda Koopman - Lammers | D13: Espresso KH | E13: Z2 | F13: Koopman Horses | J13: 0 | N13: 99 | O13: 1 | P13: 208.5 | Q13: 0 | R13: 208.5 | S13: 6.5 | T13: 6 | U13: 3 | V13: 3 | Z13: 0 | AD13: 99 | BC13: 201 | BD13: 208.5 | BE13: =IF($O$4>0,(LARGE(($N13,$V13,$AD13,$AL13,$AT13,$BB13),1)),"0") -> 99 | BG13: 0 | BH13: 0 | BI13: 102 | BJ13: 208.5
A14: 6 | B14: 700195EL | C14: Dorothy Van Leeuwen | D14: Epke | E14: Z2 | F14: Oost-Veluwse R.J.V., RV. | J14: 0 | N14: 99 | O14: 1 | P14: 202 | Q14: 0 | R14: 202 | S14: 5 | T14: 5.5 | U14: 5 | V14: 5 | Z14: 0 | AD14: 99 | BC14: 203 | BD14: 202 | BE14: =IF($O$4>0,(LARGE(($N14,$V14,$AD14,$AL14,$AT14,$BB14),1)),"0") -> 99 | BG14: 0 | BH14: 0 | BI14: 104 | BJ14: 202

Sheet ZZL
A1: Selectie uitslagen
C2: 1 | D2: =FLOOR((C2+3)/4,1) -> 1 | H2: 192 | I2: 190 | J2: =H2+I2 -> 382 | N2: 1 | P2: 193 | Q2: 193 | R2: =P2+Q2 -> 386 | V2: 2 | X2: 198 | Y2: 198 | Z2: =X2+Y2 -> 396 | AD2: 3 | AF2: 177 | AG2: 177 | AH2: =AF2+AG2 -> 354 | AL2: 4 | AN2: 178 | AO2: 178 | AP2: =AN2+AO2 -> 356 | AT2: 5 | AV2: 179 | AW2: 179 | AX2: =AV2+AW2 -> 358 | BB2: 6 | BC2: =N2+V2+AD2+AL2+AT2+BB2 -> 21 | BD2: =J2+R2+Z2+AH2+AP2+AX2 -> 2232 | BE2: =IF($O$4>0,(LARGE(($N2,$V2,$AD2,$AL2,$AT2,$BB2),1)),"0") -> 6 | BF2: =IF($O$4>0,(LARGE(($N2,$V2,$AD2,$AL2,$AT2,$BB2),2)),"0") -> 5 | BG2: 354 | BH2: 354 | BI2: =BC2-BE2-BF2 -> 10 | BJ2: =BD2-BG2-BH2 -> 1524
A3: Kring: | C3: =Instellingen!B3 -> Kring NVF | F3: Aantal afvaardiging Regio: | O3: 4 | BC3: Aantal wedstrijden: | BL3: =Instellingen!B6 -> 3
A4: Klasse: | C4: ZZL | F4: Aantal afval resultaten: | O4: =Instellingen!B7 -> 1
A5: Cat.: | F5: Plaatsingspunten niet gestart: | O5: =Instellingen!B5 -> 99 | BC5: Aantal reserves: | BL5: 2
F6: Lokatie: | G6: =Instellingen!B36 -> Hattem | O6: =Instellingen!B37 -> Ermelo | W6: =Instellingen!B38 -> Nunspeet | AE6: =Instellingen!B39 -> 0 | AM6: =Instellingen!B40 -> 0 | AU6: =Instellingen!B41 -> 0 | BC6: Dressuur | BI6: Pnt. 60% regel | BL6: 210
F7: Datum: | G7: =Instellingen!C36 -> 06 jun 2022 | O7: =Instellingen!C37 -> 18 jun 2022 | W7: =Instellingen!C38 -> 02 jul 2022 | AE7: =Instellingen!C39 ->  | AM7: =Instellingen!C40 ->  | AU7: =Instellingen!C41 ->  | BC7: Tot. | BD7: Tot. | BE7: afval | BF7: afval | BG7: afval | BH7: afval | BI7: Beste | BJ7: Beste
A8: Pl. | B8: Comb.nr. | C8: Ruiter/amazone | D8: Paard/pony | E8: kl. | F8: vereniging | G8: Ring | H8: pnt.C | I8: pnt.H | J8: pnt.tot | K8: ex 1 | L8: ex 2 | M8: pl. | N8: pl.p. | O8: Ring | P8: pnt.C | Q8: pnt.H | R8: pnt.tot. | S8: ex 1 | T8: ex 2 | U8: pl. | V8: pl.p. | W8: Ring | X8: pnt.C | Y8: pnt. H | Z8: pnt.tot. | AA8: ex 1 | AB8: ex 2 | AC8: pl. | AD8: pl.p. | AE8: Ring | AF8: pnt.C | AG8: pnt.H | AH8: pnt.tot. | AI8: ex 1 | AJ8: ex 2 | AK8: pl. | AL8: pl.p. | AM8: Ring | AN8: pnt.C | AO8: pnt.H | AP8: pnt.tot. | AQ8: ex 1 | AR8: ex 2 | AS8: pl. | AT8: pl.p. | AU8: Ring | AV8: pnt.C | AW8: pnt.H | AX8: pnt.tot. | AY8: ex 1 | AZ8: ex 2 | BA8: pl. | BB8: pl.p. | BC8: pl.pnt | BD8: punten | BE8: pl.pnt | BF8: pl.pnt | BG8: punten | BH8: punten | BI8: pl.pnt | BJ8: punten | BK8: Afv. | BL8: Res. | BM8: Afv. Regio | BN8: opmerking
A9: 1 | B9: 601761BL | C9: Geke Lokhorst | D9: Bon Á Parte | E9: ZZL | F9: Noord Veluwe, RV. PSV | G9: 1 | H9: 209.5 | I9: 0 | J9: =H9+I9 -> 209.5 | K9: 6.5 | L9: 6 | M9: 1 | N9: 1 | O9: 1 | P9: 202 | Q9: 0 | R9: =P9+Q9 -> 202 | S9: 6.5 | T9: 6 | U9: 3 | V9: 3 | W9: 3 | X9: 221 | Z9: =X9+Y9 -> 221 | AA9: 6.5 | AB9: 6.5 | AC9: 1 | AD9: 1 | BC9: =N9+V9+AD9+AL9+AT9+BB9 -> 5 | BD9: =J9+R9+Z9+AH9+AP9+AX9 -> 632.5 | BE9: =IF($O$4>0,(LARGE(($N9,$V9,$AD9,$AL9,$AT9,$BB9),1)),"0") -> 3 | BG9: 202 | BH9: 0 | BI9: =BC9-BE9-BF9 -> 2 | BJ9: =BD9-BG9-BH9 -> 430.5 | BK9: 1 | BN9: Kringkampioen
A10: 2 | B10: 806300DW | C10: Mirjam Westerink | D10: Ezra | E10: ZZL | F10: Nunspeetse Ruiterclub, RV. | J10: =H10+I10 -> 0 | N10: 99 | O10: 1 | P10: 225 | Q10: 0 | R10: =P10+Q10 -> 225 | S10: 7 | T10: 6.5 | U10: 1 | V10: 1 | W10: 3 | X10: 216.5 | Z10: =X10+Y10 -> 216.5 | AA10: 6.5 | AB10: 7 | AC10: 2 | AD10: 2 | BC10: =N10+V10+AD10+AL10+AT10+BB10 -> 102 | BD10: =J10+R10+Z10+AH10+AP10+AX10 -> 441.5 | BE10: =IF($O$4>0,(LARGE(($N10,$V10,$AD10,$AL10,$AT10,$BB10),1)),"0") -> 99 | BG10: 0 | BH10: 0 | BI10: =BC10-BE10-BF10 -> 3 | BJ10: =BD10-BG10-BH10 -> 441.5 | BK10: 2
A11: 3 | B11: 836186DB | C11: Nicole Broekhuis | D11: Discovery | E11: ZZL | F11: Cannenburgh, RV. HV. De | G11: 1 | H11: 199 | I11: 0 | J11: =H11+I11 -> 199 | K11: 6 | L11: 6 | M11: 2 | N11: 2 | O11: 1 | P11: 205 | Q11: 0 | R11: =P11+Q11 -> 205 | S11: 6 | T11: 6 | U11: 2 | V11: 2 | W11: 3 | X11: 208.5 | Z11: =X11+Y11 -> 208.5 | AA11: 6.5 | AB11: 6.5 | AC11: 3 | AD11: 3 | BC11: =N11+V11+AD11+AL11+AT11+BB11 -> 7 | BD11: =J11+R11+Z11+AH11+AP11+AX11 -> 612.5 | BE11: =IF($O$4>0,(LARGE(($N11,$V11,$AD11,$AL11,$AT11,$BB11),1)),"0") -> 3 | BG11: 208.5 | BH11: 0 | BI11: =BC11-BE11-BF11 -> 4 | BJ11: =BD11-BG11-BH11 -> 404
A12: 4 | B12: 916170FH | C12: Mindy Hoekstra | D12: Florida | E12: ZZL | F12: Oost-Veluwse R.J.V., RV. | G12: 1 | H12: 197.5 | I12: 0 | J12: =H12+I12 -> 197.5 | K12: 6 | L12: 6 | M12: 3 | N12: 3 | R12: =P12+Q12 -> 0 | V12: 99 | W12: 3 | X12: 0 | Z12: =X12+Y12 -> 0 | AC12: 4 | AD12: 90 | BC12: =N12+V12+AD12+AL12+AT12+BB12 -> 192 | BD12: =J12+R12+Z12+AH12+AP12+AX12 -> 197.5 | BE12: =IF($O$4>0,(LARGE(($N12,$V12,$AD12,$AL12,$AT12,$BB12),1)),"0") -> 99 | BG12: 0 | BH12: 0 | BI12: =BC12-BE12-BF12 -> 93 | BJ12: =BD12-BG12-BH12 -> 197.5
A13: 5 | B13: 766894DE | C13: Daphne Enter | D13: Darko | E13: ZZL | F13: Heuvelruiters, RV. | G13: 1 | H13: 190 | I13: 0 | J13: =H13+I13 -> 190 | K13: 5.5 | L13: 5.5 | M13: 4 | N13: 4 | R13: =P13+Q13 -> 0 | V13: 99 | Z13: =X13+Y13 -> 0 | AD13: 99 | BC13: =N13+V13+AD13+AL13+AT13+BB13 -> 202 | BD13: =J13+R13+Z13+AH13+AP13+AX13 -> 190 | BE13: =IF($O$4>0,(LARGE(($N13,$V13,$AD13,$AL13,$AT13,$BB13),1)),"0") -> 99 | BG13: 0 | BH13: 0 | BI13: =BC13-BE13-BF13 -> 103 | BJ13: =BD13-BG13-BH13 -> 190

Sheet Z1 - Z2 (hidden)
A1: Selectie uitslagen
C2: 1 | D2: =FLOOR((C2+3)/4,1) -> 1 | G2: 192 | H2: 192 | I2: 190 | J2: =H2+I2 -> 382 | N2: 1 | O2: 193 | P2: 193 | Q2: 193 | R2: =P2+Q2 -> 386 | V2: 2 | W2: 198 | X2: 198 | Y2: 198 | Z2: =X2+Y2 -> 396 | AD2: 3 | AE2: 177 | AF2: 177 | AG2: 177 | AH2: =AF2+AG2 -> 354 | AL2: 4 | AM2: 178 | AN2: 178 | AO2: 178 | AP2: =AN2+AO2 -> 356 | AT2: 5 | AU2: 179 | AV2: 179 | AW2: 179 | AX2: =AV2+AW2 -> 358 | BB2: 6 | BC2: =N2+V2+AD2+AL2+AT2+BB2 -> 21 | BD2: =J2+R2+Z2+AH2+AP2+AX2 -> 2232 | BE2: =IF($O$4>0,(LARGE(($N2,$V2,$AD2,$AL2,$AT2,$BB2),1)),"0") -> 6 | BF2: =IF($O$4>0,(LARGE(($N2,$V2,$AD2,$AL2,$AT2,$BB2),2)),"0") -> 5 | BG2: 354 | BH2: 354 | BI2: =BC2-BE2-BF2 -> 10 | BJ2: =BD2-BG2-BH2 -> 1524
A3: Kring: | C3: =Instellingen!B3 -> Kring NVF | BC3: Aantal wedstrijden: | BL3: =Instellingen!B6 -> 3
A4: Klasse: | C4: Z1 - Z2 | F4: Aantal afval resultaten: | O4: =Instellingen!B7 -> 1
A5: Cat.: | F5: Plaatsingspunten niet gestart: | O5: =Instellingen!B5 -> 99
F6: Lokatie: | G6: =Instellingen!B36 -> Hattem | O6: =Instellingen!B37 -> Ermelo | W6: =Instellingen!B38 -> Nunspeet | AE6: =Instellingen!B39 -> 0 | AM6: =Instellingen!B40 -> 0 | AU6: =Instellingen!B41 -> 0 | BC6: Dressuur
F7: Datum: | G7: =Instellingen!C36 -> 06 jun 2022 | O7: =Instellingen!C37 -> 18 jun 2022 | W7: =Instellingen!C38 -> 02 jul 2022 | AE7: =Instellingen!C39 ->  | AM7: =Instellingen!C40 ->  | AU7: =Instellingen!C41 ->  | BC7: Tot. | BD7: Tot. | BE7: afval | BF7: afval | BG7: afval | BH7: afval | BI7: Beste | BJ7: Beste
A8: Pl. | B8: Comb.nr. | C8: Ruiter/amazone | D8: Paard/pony | E8: kl. | F8: vereniging | G8: Ring | H8: pnt.C | I8: pnt.H | J8: pnt.tot | K8: ex 1 | L8: ex 2 | M8: pl. | N8: pl.p. | O8: Ring | P8: pnt.C | Q8: pnt.H | R8: pnt.tot. | S8: ex 1 | T8: ex 2 | U8: pl. | V8: pl.p. | W8: Ring | X8: pnt.C | Y8: pnt. H | Z8: pnt.tot. | AA8: ex 1 | AB8: ex 2 | AC8: pl. | AD8: pl.p. | AE8: Ring | AF8: pnt.C | AG8: pnt.H | AH8: pnt.tot. | AI8: ex 1 | AJ8: ex 2 | AK8: pl. | AL8: pl.p. | AM8: Ring | AN8: pnt.C | AO8: pnt.H | AP8: pnt.tot. | AQ8: ex 1 | AR8: ex 2 | AS8: pl. | AT8: pl.p. | AU8: Ring | AV8: pnt.C | AW8: pnt.H | AX8: pnt.tot. | AY8: ex 1 | AZ8: ex 2 | BA8: pl. | BB8: pl.p. | BC8: pl.pnt | BD8: punten | BE8: pl.pnt | BF8: pl.pnt | BG8: punten | BH8: punten | BI8: pl.pnt | BJ8: punten | BK8: Afv. | BL8: Res. | BN8: opmerking

Sheet Kampioenen
A1: Regio Kampioenen
G2: FALSE | H2: FALSE
A3: Kring: | B3: =Instellingen!B3 -> Kring NVF | E3: Handicap: | H3: Aantal per klasse: | J3: 1
A4: Volgnr. | B4: Comb.nr. | C4: Ruiter/amazone | D4: Paard/pony | E4: Klasse | F4: Cat. | G4: Vereniging | H4: Totaal beste | I4: Totaal perc. | J4: Totaal pl.pnt. | K4: Opmerking
C7: Klasse: B
A8: 1 | B8: 941224MR | C8: Mendy De Ruiter | D8: Montserrat-Beau | E8: B | F8: B | G8: Nunspeetse Ruiterclub, RV. | H8: 2 | I8: 138,00 | J8: 101 | K8: Kringkampioen
C10: Klasse: L1
A11: 1 | B11: 914934LW | C11: Jeanet Witteveen | D11: Little Star B | E11: L1 | F11: L1 | G11: Noord Veluwe, RV. PSV | H11: 2 | I11: 136,00 | J11: 11 | K11: Kringkampioen
C13: Klasse: L2
A14: 1 | B14: 950516NR | C14: Lindy Rook | D14: Nyatrichta | E14: L2 | F14: L2 | G14: Noord Veluwe, RV. PSV | H14: 3 | I14: 138,00 | J14: 7 | K14: Kringkampioen
C16: Klasse: M1
A17: 1 | B17: 897187LG | C17: Rosan Van de Goor | D17: Lavendel | E17: M1 | F17: M1 | G17: Heuvelruiters, RV. | H17: 2 | I17: 142,67 | J17: 7 | K17: Kringkampioen
C19: Klasse: M2
A20: 1 | B20: 904477LW | C20: Stefanie Waaijenberg | D20: Lago Maggiore | E20: M2 | F20: M2 | G20: Nunspeetse Ruiterclub, RV. | H20: 2 | I20: 140,67 | J20: 101 | K20: Kringkampioen
C22: Klasse: Z1
A23: 1 | B23: 893870LS | C23: Romy Schaftenaar | D23: LanaCapri | E23: Z1 | F23: Z1 | G23: Schaapskooiruiters, RV. | H23: 2 | I23: 138,86 | J23: 5 | K23: Kringkampioen
C25: Klasse: Z2
A26: 1 | B26: 892237DG | C26: Marjolein Gevaert | D26: Dansa's Isadansa | E26: Z2 | F26: Z2 | G26: Heuvelruiters, RV. | H26: 3 | I26: 126,86 | J26: 102 | K26: Kringkampioen
C28: Klasse: ZZL
A29: 1 | B29: 601761BL | C29: Geke Lokhorst | D29: Bon Á Parte | E29: ZZL | F29: ZZL | G29: Noord Veluwe, RV. PSV | H29: 2 | I29: 122,86 | J29: 5 | K29: Kringkampioen

Sheet Diversen
A1: Selectie wedstrijd
C2: 48 | D2: =FLOOR((C2+3)/4,1) -> 12 | H2: 192 | I2: 190 | J2: =H2+I2 -> 382
A3: Kring: | C3: =Instellingen!B3 -> Kring NVF | E3: Wedstrijd nummer: | H3: 2
A6: Import gegevens
A8: Pl. | B8: Comb.nr. | C8: Ruiter/amazone | D8: Paard/pony | E8: klasse | F8: cat. | G8: vereniging | H8: pnt.C | I8: pnt.H | J8: pnt.tot | K8: ex 1 | L8: ex 2 | M8: perc. | N8: opmerking

Sheet Instellingen
B1: Waarde | C1: Opmerking
A2: Gegevens:
A3: Naam van de Kring: | B3: Kring NVF
A4: Interval plaatsingspunten: | B4: 1 | C4: 1=(1,2,3,etc) / 2=(1,3,5,etc)
A5: Plaatsingspunten niet gestart: | B5: 99
A6: Aantal selectie wedstrijden: | B6: 3
A7: Aantal afval resultaten: | B7: 1
A8: Aantal jury's: | B8: 1
A9: Ex-aequo punten per wedstrijd | B9: 1 | C9: 1=ja / 0=nee
A10: Plaatsingspunten niet gefinisht | B10: 90 | C10: Blanko is volgens plaatsing
A11: Importeren punten en/of plaatsing | B11: 1: Punten van de proef
A13: Afvaardiging Regiokampioenschappen | C13: Aanmelden, Afmelden, Blanko is iedereen
A14: Klasse Z1-Z2 cat. CDE samenvoegen | B14: Nee
A15: Klasse L1-L2 cat. AB samenvoegen | B15: Nee
A17: Klasse BB verbergen | B17: Nee
A18: Tabbladen B, L1-L2, M1-M2, Z1-Z2 nodig | B18: Nee
A23: Volgorde ex-aequo regeling: | C23: (De laagste waarde heeft voorrang, niet ingevulde gegevens doen niet mee voor de volgorde van het resultaat)
A24: Totaal beste plaatsingspunten: | B24: 1 | C24: (dit is een vaste waarde en heeft de hoogste voorrang)
A25: Plaatsingspunten 6e wedstrijd:
A26: Plaatsingspunten 5e wedstrijd:
A27: Plaatsingspunten 4e wedstrijd:
A28: Plaatsingspunten 3e wedstrijd: | B28: 2
A29: Plaatsingspunten 2e wedstrijd:
A30: Plaatsingspunten 1e wedstrijd:
A31: Totaal alle plaatsingspunten: | B31: 3
A32: Totaal behaalde punten beste wedstrijden:
A33: Totaal behaalde punten alle wedstrijden: | B33: 4
A35: Omschrijving | B35: Lokatie | C35: Datum
A36: 1e wedstrijd | B36: Hattem | C36: 06 jun 2022
A37: 2e wedstrijd | B37: Ermelo | C37: 18 jun 2022
A38: 3e wedstrijd | B38: Nunspeet | C38: 02 jul 2022
A39: 4e wedstrijd
A40: 5e wedstrijd
A41: 6e wedstrijd

Sheet Afvaardiging
A1: Afvaardiging aan de Regio Kampioenschappen
A3: Kring: | B3: =Instellingen!B3 -> Kring NVF | E3: Discipline: | G3: Dressuur
A4: Volgnr. | B4: Comb.nr. | C4: Ruiter / amazone | D4: Paard/pony | E4: Klasse | F4: Cat. | G4: Vereniging | H4: Opmerking | I4: =IF(C4<>"",RIGHT(C4,LEN(C4)-SEARCH(" ",C4,1)),"") -> / amazone | J4: =IF(C4<>"",LEFT(C4, SEARCH(" ",C4,1)),"") -> Ruiter
C6: Klasse: B | D6: Afvaardiging: 7
A7: 1 | B7: 941224MR | C7: Mendy De Ruiter | D7: Montserrat-Beau | E7: B | G7: Nunspeetse Ruiterclub, RV. | H7: Kringkampioen
A8: 2 | B8: 952978LW | C8: Armanda Van der Wal | D8: Lyandra-Cara Vdw | E8: B | G8: Schaapskooiruiters, RV.
A9: 3 | B9: 910069LD | C9: Nathanie Baron | D9: Ludovica | E9: B | G9: Heuvelruiters, RV.
A10: 4 | B10: 945180UD | C10: Tara Draaijer | D10: Ulie | E10: B | G10: Kromme Zweppe, RV.
A11: 5 | B11: 946518BB | C11: Nikki van Bergen | D11: Beau | E11: B | G11: Dronten, Paardencentrum
A12: 6 | B12: 953136NB | C12: Dianne Den Besten | D12: Ninaronia Norel | E12: B | G12: Noord Veluwe, RV. PSV
A13: 7 | B13: 946204ND | C13: Elvira Van den Dragt | D13: Nanisina | E13: B | G13: Nunspeetse Ruiterclub, RV.
A14: 1e Res. | B14: 953332MT | C14: Rosalie Tessemaker | D14: Mighty Mike | E14: B | G14: Horsthoekruiters, RV.
A15: 2e Res. | B15: 909460BB | C15: Susan Benedictus | D15: Exper | E15: B | G15: Flevoruiters, RV.
C17: Klasse: L1 | D17: Afvaardiging: 6
A18: 1 | B18: 914934LW | C18: Jeanet Witteveen | D18: Little Star B | E18: L1 | G18: Noord Veluwe, RV. PSV | H18: Kringkampioen
A19: 2 | B19: 938824MV | C19: Julia Vrolijken | D19: Miliane SC | E19: L1 | G19: Nunspeetse Ruiterclub, RV.
A20: 3 | B20: 946858NS | C20: Laura Spronk | D20: New Star | E20: L1 | G20: Heuvelruiters, RV.
A21: 4 | B21: 938825NV | C21: Julia Vrolijken | D21: Nashville SC | E21: L1 | G21: Nunspeetse Ruiterclub, RV.
A22: 5 | B22: 954280KH | C22: Patrieck Van Hoek | D22: Kiona | E22: L1 | G22: Noord Veluwe, RV. PSV
A23: 6 | B23: 928668MB | C23: Dianne Den Besten | D23: Michigan DB | E23: L1 | G23: Noord Veluwe, RV. PSV
A24: 1e Res. | B24: 932227LK | C24: Susanne Kogelman | D24: Dansa's La Dansa | E24: L1 | G24: Heuvelruiters, RV.
A25: 2e Res. | B25: 904124KH | C25: Kayleigh De Haas | D25: Kazan-S | E25: L1 | G25: WWNA, RV.
C27: Klasse: L2 | D27: Afvaardiging: 6
A28: 1 | B28: 950516NR | C28: Lindy Rook | D28: Nyatrichta | E28: L2 | G28: Noord Veluwe, RV. PSV | H28: Kringkampioen
A29: 2 | B29: 926386MH | C29: Patrieck Van Hoek | D29: Macy Js | E29: L2 | G29: Noord Veluwe, RV. PSV
A30: 3 | B30: 909770LS | C30: Helga Schuurman | D30: Lamborghini Jb | E30: L2 | G30: Noord Veluwe, RV. PSV
A31: 4 | B31: 950624NR | C31: Lindy Rook | D31: No Nonsense Vdz | E31: L2 | G31: Noord Veluwe, RV. PSV
A32: 5 | B32: 955068NS | C32: Romy Schaftenaar | D32: Nobility | E32: L2 | G32: Schaapskooiruiters, RV.
A33: 6 | B33: 888687KH | C33: Angela Hooghordel | D33: Kryptonite | E33: L2 | G33: Nunspeetse Ruiterclub, RV.
A34: 1e Res. | B34: 919958MG | C34: Rosan Van de Goor | D34: Massaro | E34: L2 | G34: Heuvelruiters, RV.
A35: 2e Res. | B35: 926400AR | C35: Maud Rorije | D35: Alert | E35: L2 | G35: Horsthoekruiters, RV.
C37: Klasse: M1 | D37: Afvaardiging: 7
A38: 1 | B38: 897187LG | C38: Rosan Van de Goor | D38: Lavendel | E38: M1 | G38: Heuvelruiters, RV. | H38: Kringkampioen
A39: 2 | B39: 904458KB | C39: Indy van de Beeten | D39: King Kayrac | E39: M1 | G39: Randmeerruiters, RV. De
A40: 3 | B40: 905423KK | C40: Femke Groeneveld - Van de Kolk | D40: King Of Fira | E40: M1 | G40: Randmeerruiters, RV. De
A41: 4 | B41: 884764KG | C41: Anna Te Grotenhuis | D41: King Arthur | E41: M1 | G41: Heuvelruiters, RV.
A42: 5 | B42: 927477JG | C42: Iris Groeneveld | D42: Just-In Case | E42: M1 | G42: Randmeerruiters, RV. De
A43: 6 | B43: 910057GK | C43: Pascalle De Klerk | D43: Gucci | E43: M1 | G43: Cannenburgh, RV. HV. De
A44: 7 | B44: 936196ME | C44: Daphne Enter | D44: Most Wanted | E44: M1 | G44: Heuvelruiters, RV.
A45: 1e Res. | B45: 824172DM | C45: Jeanne Meijer | D45: Double Coloured Cato | E45: M1 | G45: Heuvelruiters, RV.
A46: 2e Res. | B46: 863302JV | C46: Monique Vrolijken | D46: Jeason | E46: M1 | G46: Heuvelruiters, RV.
C48: Klasse: M2 | D48: Afvaardiging: 8
A49: 1 | B49: 904477LW | C49: Stefanie Waaijenberg | D49: Lago Maggiore | E49: M2 | G49: Nunspeetse Ruiterclub, RV. | H49: Kringkampioen
A50: 2 | B50: 938773MP | C50: Kimberly Pap | D50: Martinez | E50: M2 | G50: Nunspeetse Ruiterclub, RV.
A51: 3 | B51: 930770DG | C51: Marjolein Gevaert | D51: Dansa's La Morka | E51: M2 | G51: Heuvelruiters, RV.
A52: 4 | B52: 911836HB | C52: Kiki Bleeker | D52: Handsome | E52: M2 | G52: Nunspeetse Ruiterclub, RV.
A53: 5 | B53: 903165LR | C53: Miranda Riezebos | D53: L Patron S | E53: M2 | G53: WWNA, RV.
A54: 6 | B54: 766513BB | C54: Fleur Berkhof | D54: Bambino DB | E54: M2 | G54: Cannenburgh, RV. HV. De | H54: Dispensatie
A55: 7 | B55: 725964FB | C55: Marloes Buitenhuis | D55: Fast Forward | E55: M2 | G55: Schaapskooiruiters, RV.
C57: Klasse: Z1 | D57: Afvaardiging: 7
A58: 1 | B58: 893870LS | C58: Romy Schaftenaar | D58: LanaCapri | E58: Z1 | G58: Schaapskooiruiters, RV. | H58: Kringkampioen
A59: 2 | B59: 911855JB | C59: Anne-marije Van den Berg | D59: Janny-Fee | E59: Z1 | G59: Heuvelruiters, RV.
A60: 3 | B60: 866953BV | C60: Helma Franken - Vromen | D60: Bon Jovi | E60: Z1 | G60: Nunspeetse Ruiterclub, RV. | H60: Laat ivm pony leerlingen
A61: 4 | B61: 947388LW | C61: Stefanie Waaijenberg | D61: Lakewood Tarpania | E61: Z1 | G61: Nunspeetse Ruiterclub, RV. | H61: Start ook M2
A62: 5 | B62: 914806JW | C62: Stefanie Waaijenberg | D62: Juny | E62: Z1 | G62: Nunspeetse Ruiterclub, RV. | H62: Start ook M2
A63: 6 | B63: 856655JM | C63: Gerrit Morren | D63: Jilvania | E63: Z1 | G63: Nunspeetse Ruiterclub, RV.
A64: 7 | B64: 852306JM | C64: Melanie Mulder | D64: Jody | E64: Z1 | G64: Marleruiters, RV.
A65: 1e Res. | B65: 904349JW | C65: Alice Weijman | D65: Joey | E65: Z1 | G65: Nunspeetse Ruiterclub, RV.
A66: 2e Res. | B66: 876144JS | C66: Lotte Schut | D66: Jazzy T | E66: Z1 | G66: Schaapskooiruiters, RV.
C68: Klasse: Z2 | D68: Afvaardiging: 3
A69: 1 | B69: 892237DG | C69: Marjolein Gevaert | D69: Dansa's Isadansa | E69: Z2 | G69: Heuvelruiters, RV. | H69: Kringkampioen
A70: 2 | B70: 719193FO | C70: Astrid Prinsen - Osinga | D70: Flamenco | E70: Z2 | G70: Oost-Veluwse R.J.V., RV.
A71: 3 | B71: 878034FM | C71: Annemarie Jansen - Migchelbrink | D71: Feniks | E71: Z2 | G71: Nunspeetse Ruiterclub, RV.
C73: Klasse: ZZL | D73: Afvaardiging: 4
A74: 1 | B74: 601761BL | C74: Geke Lokhorst | D74: Bon Á Parte | E74: ZZL | G74: Noord Veluwe, RV. PSV | H74: Kringkampioen
A75: 2 | B75: 806300DW | C75: Mirjam Westerink | D75: Ezra | E75: ZZL | G75: Nunspeetse Ruiterclub, RV.
